"Merchandising Type Category","Detailed Merchant Category","Supplier","Purchase Details","Transaction Date","Value","Department"
"Type of Retail Store","Grocery Stores/Supermarkets","Sainsburys S/mkt","Supplies and Services related expenditure","07/01/2020","45.83","Director of Adult Services"
"Business To Business Facility/","Industrial Supplies - Def","Www.Gompels.Co.Uk","Premises related expenditure","07/01/2020","47.52","Director of Adult Services"
"Business To Business Facility/","Industrial Supplies - Def","Www.Gompels.Co.Uk","Supplies and Services related expenditure","07/01/2020","4.50","Director of Adult Services"
"Freight/Courier/Warehouse Svcs","Public Warehousing","Lok N Store","Premises related expenditure","07/01/2020","18.00","Director of Housing, Neighbourhood and Building Services"
"Freight/Courier/Warehouse Svcs","Public Warehousing","Lok N Store","Premises related expenditure","07/01/2020","86.67","Director of Housing, Neighbourhood and Building Services"
"Business To Business Facility/","Industrial Supplies - Def","Arco Ltd","Supplies and Services related expenditure","07/01/2020","412.32","Director of Housing, Neighbourhood and Building Services"
"Business To Business Facility/","Industrial Supplies - Def","Arco Ltd","Supplies and Services related expenditure","07/01/2020","412.32","Director of Housing, Neighbourhood and Building Services"
"Business To Business Facility/","Industrial Supplies - Def","Arco Ltd","Supplies and Services related expenditure","07/01/2020","412.32","Director of Housing, Neighbourhood and Building Services"
"Business To Business Facility/","Industrial Supplies - Def","Arco Ltd","Supplies and Services related expenditure","07/01/2020","412.32","Director of Housing, Neighbourhood and Building Services"
"Business To Business Eqpt/Furn","Stationery/Office Supplies","Www.Banneruk.Com","Supplies and Services related expenditure","07/01/2020","14.81","Director of Finance & Resources"
"Type of Retail Store","Electronics Sales","Digi-Quick","Supplies and Services related expenditure","07/01/2020","4.16","Director of Culture, Leisure & Regulatory Services"
"Facilities/Repair Supplies","Home Supply Warehouse Stores","Screwfix Direct","Supplies and Services related expenditure","07/01/2020","10.41","Director of Culture, Leisure & Regulatory Services"
"Equipment And Furniture","Equip/Furn Rent/Lease Serv","Afi Uplift","Supplies and Services related expenditure","07/01/2020","152.00","Director of Culture, Leisure & Regulatory Services"
"Auto/Vehicle Expenses","Automotive Tire Stores","Hordean Tyres","Transport related expenditure","07/01/2020","382.50","Director of Culture, Leisure & Regulatory Services"
"Equipment And Furniture","Phone Serv/Equip Non-Util","Mobile World Portsmouth","Agency and Third Party Payments related expenditure","07/01/2020","39.00","Director of Children's Services and Education"
"Personal Service Provider","Computer Program/Sys Design","Browserstack.Com","Supplies and Services related expenditure","07/01/2020","87.48","Director of Corporate Services"
"Other Supplies","Misc Gen Merchandise - Def","Wilko Retail Limited","Supplies and Services related expenditure","07/01/2020","6.50","Director of Children's Services and Education"
"Type of Retail Store","Grocery Stores/Supermarkets","Asda Stores","Supplies and Services related expenditure","07/01/2020","13.33","Director of Children's Services and Education"
"Other Supplies","Misc Gen Merchandise - Def","Wilko Retail Limited","Supplies and Services related expenditure","07/01/2020","17.58","Director of Children's Services and Education"
"Type of Retail Store","Sporting Goods Stores","J D Sports Fashion Plc","Supplies and Services related expenditure","07/01/2020","83.33","Director of Children's Services and Education"
"Miscellaneous","Other Direct Marketers","Amazon.Co.Uk","Supplies and Services related expenditure","07/01/2020","10.65","Director of Children's Services and Education"
"Type of Retail Store","Electronics Sales","Apple.Com/Uk","Supplies and Services related expenditure","07/01/2020","35.00","Director of Children's Services and Education"
"Other Supplies","Misc Speciality Retail","Amznmktplace","Supplies and Services related expenditure","07/01/2020","6.66","Director of Adult Services"
"Other Supplies","Misc Speciality Retail","Amznmktplace","Supplies and Services related expenditure","07/01/2020","16.65","Director of Adult Services"
"Facilities/Repair Supplies","Hardware Stores","Www.Lsengineers.Co.Uk","Supplies and Services related expenditure","07/01/2020","39.95","Director of Housing, Neighbourhood and Building Services"
"Business To Business Eqpt/Furn","Stationery/Office Supplies","Www.Banneruk.Com","Supplies and Services related expenditure","07/01/2020","17.64","Director of Housing, Neighbourhood and Building Services"
"Business To Business Eqpt/Furn","Stationery/Office Supplies","Www.Banneruk.Com","Supplies and Services related expenditure","07/01/2020","26.73","Director of Housing, Neighbourhood and Building Services"
"Business To Business Eqpt/Furn","Stationery/Office Supplies","Www.Banneruk.Com","Supplies and Services related expenditure","07/01/2020","30.32","Director of Housing, Neighbourhood and Building Services"
"Business To Business Eqpt/Furn","Stationery/Office Supplies","Www.Banneruk.Com","Supplies and Services related expenditure","07/01/2020","72.03","Director of Housing, Neighbourhood and Building Services"
"Facilities/Repair Supplies","Lumber/Build. Supply Stores","J F Goodwillie Ltd","Premises related expenditure","07/01/2020","302.97","Director of Children's Services and Education"
"Other Supplies","Misc Speciality Retail","Value Products Ltd","Supplies and Services related expenditure","07/01/2020","154.00","Director of Housing, Neighbourhood and Building Services"
"Business To Business Services","Misc Publishing & Printing","Www.Solopress.Com","Supplies and Services related expenditure","07/01/2020","16.00","Director of Culture, Leisure & Regulatory Services"
"Caterers Food","Caterers","Bfs Group","Supplies and Services related expenditure","07/01/2020","536.28","Director of Housing, Neighbourhood and Building Services"
"Caterers Food","Caterers","Bfs Group","Supplies and Services related expenditure","07/01/2020","360.95","Director of Housing, Neighbourhood and Building Services"
"Caterers Food","Caterers","Bfs Group","Supplies and Services related expenditure","07/01/2020","376.94","Director of Housing, Neighbourhood and Building Services"
"Caterers Food","Caterers","Bfs Group","Supplies and Services related expenditure","07/01/2020","992.04","Director of Housing, Neighbourhood and Building Services"
"Caterers Food","Caterers","Bfs Group","Supplies and Services related expenditure","07/01/2020","195.09","Director of Housing, Neighbourhood and Building Services"
"Caterers Food","Caterers","Bfs Group","Supplies and Services related expenditure","07/01/2020","100.00","Director of Housing, Neighbourhood and Building Services"
"Caterers Food","Caterers","Bfs Group","Supplies and Services related expenditure","07/01/2020","45.00","Director of Housing, Neighbourhood and Building Services"
"Caterers Food","Caterers","Bfs Group","Supplies and Services related expenditure","07/01/2020","905.78","Director of Housing, Neighbourhood and Building Services"
"Caterers Food","Caterers","Bfs Group","Supplies and Services related expenditure","07/01/2020","157.78","Director of Housing, Neighbourhood and Building Services"
"Caterers Food","Caterers","Bfs Group","Supplies and Services related expenditure","07/01/2020","207.12","Director of Housing, Neighbourhood and Building Services"
"Caterers Food","Caterers","Bfs Group","Supplies and Services related expenditure","07/01/2020","92.58","Director of Housing, Neighbourhood and Building Services"
"Caterers Food","Caterers","Bfs Group","Supplies and Services related expenditure","07/01/2020","70.99","Director of Housing, Neighbourhood and Building Services"
"Caterers Food","Caterers","Bfs Group","Supplies and Services related expenditure","07/01/2020","305.97","Director of Housing, Neighbourhood and Building Services"
"Caterers Food","Caterers","Bfs Group","Supplies and Services related expenditure","07/01/2020","805.96","Director of Housing, Neighbourhood and Building Services"
"Caterers Food","Caterers","Bfs Group","Supplies and Services related expenditure","07/01/2020","380.96","Director of Housing, Neighbourhood and Building Services"
"Caterers Food","Caterers","Bfs Group","Supplies and Services related expenditure","07/01/2020","850.99","Director of Housing, Neighbourhood and Building Services"
"Caterers Food","Caterers","Bfs Group","Supplies and Services related expenditure","07/01/2020","459.62","Director of Housing, Neighbourhood and Building Services"
"Caterers Food","Caterers","Bfs Group","Supplies and Services related expenditure","07/01/2020","2,641.04","Director of Housing, Neighbourhood and Building Services"
"Caterers Food","Caterers","Bfs Group","Supplies and Services related expenditure","07/01/2020","109.55","Director of Housing, Neighbourhood and Building Services"
"Caterers Food","Caterers","Bfs Group","Supplies and Services related expenditure","07/01/2020","187.50","Director of Housing, Neighbourhood and Building Services"
"Caterers Food","Caterers","Bfs Group","Supplies and Services related expenditure","07/01/2020","1,158.00","Director of Housing, Neighbourhood and Building Services"
"Caterers Food","Caterers","Bfs Group","Supplies and Services related expenditure","07/01/2020","41.15","Director of Housing, Neighbourhood and Building Services"
"Business To Business Eqpt/Furn","Stationery/Office Supplies","Www.Banneruk.Com","Supplies and Services related expenditure","07/01/2020","9.26","Director of Regeneration"
"Other Supplies","Misc Speciality Retail","Amznmktplace","Supplies and Services related expenditure","07/01/2020","14.83","Director of Children's Services and Education"
"Personal Service Provider","Computer Program/Sys Design","Google Ads3056926335","Supplies and Services related expenditure","07/01/2020","52.77","Director of Housing, Neighbourhood and Building Services"
"Other Supplies","Discount Stores","Argos Ltd","Supplies and Services related expenditure","07/01/2020","24.54","Director of Children's Services and Education"
"Medical","Lab/Med/Hospital Equipment","Wightman & Parrish","Premises related expenditure","07/01/2020","297.23","Director of Housing, Neighbourhood and Building Services"
"Other Supplies","Misc Speciality Retail","Amznmktplace","Premises related expenditure","07/01/2020","24.47","Director of Portsmouth International Port"
"Auto/Vehicle Expenses","Automotive Tire Stores","Hordean Tyres","Transport related expenditure","07/01/2020","135.00","Director of Portsmouth International Port"
"Business To Business Eqpt/Furn","Stationery/Office Supplies","Www.Banneruk.Com","Supplies and Services related expenditure","07/01/2020","23.82","Director of Finance & Resources"
"Business To Business Eqpt/Furn","Stationery/Office Supplies","Www.Banneruk.Com","Supplies and Services related expenditure","07/01/2020","110.53","Director of Finance & Resources"
"Other Supplies","Misc Speciality Retail","Amznmktplace","Supplies and Services related expenditure","07/01/2020","241.21","Director of Children's Services and Education"
"Other Supplies","Misc Speciality Retail","Amznmktplace","Supplies and Services related expenditure","07/01/2020","15.17","Director of Children's Services and Education"
"Other Supplies","Misc Speciality Retail","Amazon.Co.Uk","Supplies and Services related expenditure","07/01/2020","20.00","Director of Children's Services and Education"
"Other Supplies","Misc Speciality Retail","Amazon.Co.Uk","Supplies and Services related expenditure","07/01/2020","20.00","Director of Children's Services and Education"
"Business To Business Eqpt/Furn","Book Stores","Bookdepository.Com","Supplies and Services related expenditure","07/01/2020","122.60","Director of Children's Services and Education"
"Business To Business Facility/","Industrial Supplies - Def","Arco Ltd","Supplies and Services related expenditure","07/01/2020","752.59","Director of Housing, Neighbourhood and Building Services"
"Business To Business Facility/","Industrial Supplies - Def","Www.Arco.Co.Uk","Supplies and Services related expenditure","07/01/2020","-49.03","Director of Housing, Neighbourhood and Building Services"
"Business To Business Eqpt/Furn","Stationery/Office Supplies","Www.Banneruk.Com","Supplies and Services related expenditure","07/01/2020","12.11","Director of Culture, Leisure & Regulatory Services"
"Other Supplies","Misc Speciality Retail","Amznmktplace","Premises related expenditure","07/01/2020","62.63","Director of Housing, Neighbourhood and Building Services"
"Other Supplies","Discount Stores","Argos Ltd","Agency and Third Party Payments related expenditure","07/01/2020","53.95","Director of Children's Services and Education"
"Eating And Drinking Places","Fast Food Restaurants","Kfc Portsmouth","Supplies and Services related expenditure","07/01/2020","6.03","Director of Children's Services and Education"
"Other Supplies","Gift/Card/Novelty And Souvenir Stores","Victory Trophies","Supplies and Services related expenditure","07/01/2020","12.49","Director of Children's Services and Education"
"Miscellaneous","Charitable/Soc Service Orgs","Pp*ecrobertsce","Supplies and Services related expenditure","07/01/2020","145.00","Director of Children's Services and Education"
"Other Supplies","Misc Speciality Retail","Amznmktplace","Supplies and Services related expenditure","07/01/2020","7.42","Director of Children's Services and Education"
"Business To Business Eqpt/Furn","Stationery/Office Supplies","Www.Banneruk.Com","Supplies and Services related expenditure","07/01/2020","9.81","Director of Culture, Leisure & Regulatory Services"
"Medical","Lab/Med/Hospital Equipment","Wightman & Parrish Ltd","Supplies and Services related expenditure","07/01/2020","170.28","Director of Regeneration"
"Other Supplies","Discount Stores","Argos Ltd","Supplies and Services related expenditure","07/01/2020","14.16","Director of Children's Services and Education"
"Business To Business Facility/","Industrial Supplies - Def","Www.Arco.Co.Uk","Supplies and Services related expenditure","07/01/2020","46.08","Director of Housing, Neighbourhood and Building Services"
"Other Supplies","Misc Speciality Retail","Amznmktplace","Supplies and Services related expenditure","07/01/2020","5.83","Director of Adult Services"
"Miscellaneous","Other Direct Marketers","Amazon.Co.Uk","Supplies and Services related expenditure","07/01/2020","13.76","Director of Adult Services"
"Miscellaneous","Other Direct Marketers","Amazon.Co.Uk","Supplies and Services related expenditure","07/01/2020","13.76","Director of Adult Services"
"Miscellaneous","Other Direct Marketers","Amazon.Co.Uk","Supplies and Services related expenditure","07/01/2020","13.76","Director of Adult Services"
"Miscellaneous","Other Direct Marketers","Amazon.Co.Uk","Supplies and Services related expenditure","07/01/2020","13.76","Director of Adult Services"
"Miscellaneous","Other Direct Marketers","Amazon.Co.Uk","Supplies and Services related expenditure","07/01/2020","13.76","Director of Adult Services"
"Miscellaneous","Other Direct Marketers","Amazon.Co.Uk","Supplies and Services related expenditure","07/01/2020","13.76","Director of Adult Services"
"Miscellaneous","Other Direct Marketers","Amazon.Co.Uk","Supplies and Services related expenditure","07/01/2020","13.76","Director of Adult Services"
"Miscellaneous","Other Direct Marketers","Amazon.Co.Uk","Supplies and Services related expenditure","07/01/2020","13.76","Director of Adult Services"
"Miscellaneous","Other Direct Marketers","Amazon.Co.Uk","Supplies and Services related expenditure","07/01/2020","13.76","Director of Adult Services"
"Miscellaneous","Other Direct Marketers","Amazon.Co.Uk","Supplies and Services related expenditure","07/01/2020","13.76","Director of Adult Services"
"Business To Business Eqpt/Furn","Stationery/Office Supplies","Www.Banneruk.Com","Supplies and Services related expenditure","07/01/2020","16.04","Director of Adult Services"
"Type of Retail Store","Grocery Stores/Supermarkets","Fruit Basket Ltd","Supplies and Services related expenditure","07/01/2020","3,800.05","Director of Adult Services"
"Business To Business Facility/","Industrial Supplies - Def","Www.Arco.Co.Uk","Supplies and Services related expenditure","07/01/2020","32.00","Director of Housing, Neighbourhood and Building Services"
"Auto/Vehicle Expenses","Auto Body Repair Shops","Www.","Supplies and Services related expenditure","07/01/2020","300.10","Director of Regeneration"
"Other Supplies","Misc Speciality Retail","Amznmktplace Amazon.Co.Uk","Supplies and Services related expenditure","07/01/2020","16.24","Director of Housing, Neighbourhood and Building Services"
"Automobile Rental","Automobile Rental Agency","Southern Motor Contrac","Transport related expenditure","07/01/2020","1,601.50","Director of Regeneration"
"Clothing Services","Mens/Womens Clothing Stores","Www.Dickiesstore.Co.Uk","Supplies and Services related expenditure","07/01/2020","33.33","Director of Housing, Neighbourhood and Building Services"
"Facilities/Repair Supplies","Automotive Parts Stores","Total Motor Factors Lt","Transport related expenditure","07/01/2020","13.73","Director of Housing, Neighbourhood and Building Services"
"Facilities/Repair Supplies","Home Supply Warehouse Stores","B & Q 1260","Supplies and Services related expenditure","07/01/2020","16.00","Director of Regeneration"
"Other Supplies","Misc Speciality Retail","Amznmktplace","Supplies and Services related expenditure","07/01/2020","9.16","Solent LEP"
"Other Supplies","Misc Speciality Retail","Amznmktplace","Supplies and Services related expenditure","07/01/2020","281.64","Solent LEP"
"Type of Retail Store","Record Shops","Amazon Music","Supplies and Services related expenditure","07/01/2020","14.99","Director of Adult Services"
"Government Service","Schools - Default","Vue*ncs Citb Hs&e Test","Employees related expenditure","07/01/2020","21.00","Director of Housing, Neighbourhood and Building Services"
"Miscellaneous","Other Direct Marketers","Amazon.Co.Uk","Supplies and Services related expenditure","07/01/2020","8.22","Director of Children's Services and Education"
"Facilities/Repair Supplies","Home Supply Warehouse Stores","B & Q 1238","Supplies and Services related expenditure","07/01/2020","27.80","Director of Housing, Neighbourhood and Building Services"
"Automobile Services & Supplies","Service Stations","Tesco Pfs 4274","Transport related expenditure","07/01/2020","11.25","Director of Housing, Neighbourhood and Building Services"
"Facilities/Repair Supplies","Lawn/Garden Supply/Nursery","Carters Of Swanwic","Supplies and Services related expenditure","07/01/2020","100.83","Director of Housing, Neighbourhood and Building Services"
"Government Service","Govt Serv - Default","Hampshire County Counc","Supplies and Services related expenditure","07/01/2020","30.00","Director of Culture, Leisure & Regulatory Services"
"Other Supplies","Misc Gen Merchandise - Def","Barriers Direct","Supplies and Services related expenditure","07/01/2020","195.29","Director of Housing, Neighbourhood and Building Services"
"Other Supplies","Misc Gen Merchandise - Def","Barriers Direct","Supplies and Services related expenditure","07/01/2020","787.40","Director of Housing, Neighbourhood and Building Services"
"Business To Business Eqpt/Furn","Stationery/Office Supplies","Www.Banneruk.Com","Supplies and Services related expenditure","07/01/2020","5.80","Director of Children's Services and Education"
"Business To Business Eqpt/Furn","Stationery/Office Supplies","Www.Banneruk.Com","Supplies and Services related expenditure","07/01/2020","5.80","Director of Children's Services and Education"
"Other Supplies","Misc Speciality Retail","Amznmktplace","Supplies and Services related expenditure","07/01/2020","24.99","Director of Children's Services and Education"
"Business To Business Eqpt/Furn","Stationery/Office Supplies","Www.Banneruk.Com","Supplies and Services related expenditure","07/01/2020","9.81","Director of Children's Services and Education"
"Business To Business Eqpt/Furn","Stationery/Office Supplies","Www.Banneruk.Com","Supplies and Services related expenditure","07/01/2020","16.91","Director of Children's Services and Education"
"Facilities/Repair Supplies","Lumber/Build. Supply Stores","Selco Trading Ctr","Premises related expenditure","07/01/2020","47.28","Director of Adult Services"
"Business To Business Facility/","Industrial Supplies - Def","Www.Gaffertape.Com","Supplies and Services related expenditure","07/01/2020","47.63","Director of Portsmouth International Port"
"Amusement/Entertainment","Amusement/Rec Serv - Def","Moors Valley Country P","Transport related expenditure","07/01/2020","6.67","Director of Children's Services and Education"
"Type of Retail Store","Grocery Stores/Supermarkets","Tesco Stores 4579","Supplies and Services related expenditure","07/01/2020","1.75","Director of Children's Services and Education"
"Type of Retail Store","Grocery Stores/Supermarkets","Tesco Stores 4579","Supplies and Services related expenditure","07/01/2020","10.00","Director of Children's Services and Education"
"Type of Retail Store","Grocery Stores/Supermarkets","Tesco Store 3055","Supplies and Services related expenditure","07/01/2020","0.92","Director of Children's Services and Education"
"Type of Retail Store","Grocery Stores/Supermarkets","Tesco Store 3055","Supplies and Services related expenditure","07/01/2020","15.80","Director of Children's Services and Education"
"Other Supplies","Misc Speciality Retail","Amznmktplace","Supplies and Services related expenditure","07/01/2020","16.63","Director of Children's Services and Education"
"Facilities/Repair Supplies","Home Supply Warehouse Stores","Screwfix Direct","Premises related expenditure","07/01/2020","82.91","Director of Children's Services and Education"
"Type of Retail Store","Grocery Stores/Supermarkets","Sainsburys S/mkt","Transport related expenditure","07/01/2020","5.00","Director of Children's Services and Education"
"Business To Business Eqpt/Furn","Stationery/Office Supplies","Www.Banneruk.Com","Supplies and Services related expenditure","07/01/2020","36.54","Director of Culture, Leisure & Regulatory Services"
"Medical","Lab/Med/Hospital Equipment","Wightman & Parrish Ltd","Premises related expenditure","07/01/2020","692.33","Director of Housing, Neighbourhood and Building Services"
"Other Supplies","Misc Speciality Retail","Amznmktplace","Supplies and Services related expenditure","07/01/2020","24.15","Director of Regeneration"
"Auto/Vehicle Expenses","Automated Fuel Dispensers","Asda Petrol 4583","Transport related expenditure","07/01/2020","51.63","Director of Regeneration"
"Other Supplies","Misc Speciality Retail","Amznmktplace","Supplies and Services related expenditure","07/01/2020","107.50","Director of Culture, Leisure & Regulatory Services"
"Type of Retail Store","Grocery Stores/Supermarkets","Tesco Stores 2322","Supplies and Services related expenditure","07/01/2020","4.20","Director of Adult Services"
"Medical","Lab/Med/Hospital Equipment","Wightman & Parrish","Premises related expenditure","07/01/2020","19.99","Director of Adult Services"
"Type of Retail Store","Grocery Stores/Supermarkets","Fruit Basket Ltd","Supplies and Services related expenditure","07/01/2020","67.88","Director of Adult Services"
"Type of Retail Store","Misc Food Stores - Default","Bransbury Park Butchers","Supplies and Services related expenditure","07/01/2020","80.54","Director of Adult Services"
"Facilities Maintenance","Clean/Maint/Janitoral Serv","Suez Recycling&recover","Premises related expenditure","07/01/2020","83.16","Director of Adult Services"
"Type of Retail Store","Freezer/Meat Lockers","Dennis Edwards Food Serv","Supplies and Services related expenditure","07/01/2020","197.27","Director of Adult Services"
"Business To Business Facility/","Industrial Supplies - Def","Www.Arco.Co.Uk","Supplies and Services related expenditure","07/01/2020","47.11","Director of Regeneration"
"Government Service","Schools - Default","Mbl Seminars","Employees related expenditure","07/01/2020","250.00","Director of Corporate Services"
"Government Service","Schools - Default","Mbl Seminars","Employees related expenditure","07/01/2020","250.00","Director of Corporate Services"
"Business To Business Facility/","Industrial Supplies - Def","Www.Arco.Co.Uk","Supplies and Services related expenditure","07/01/2020","66.44","Director of Housing, Neighbourhood and Building Services"
"Other Supplies","Discount Stores","Argos Ltd","Supplies and Services related expenditure","07/01/2020","16.62","Director of Children's Services and Education"
"Caterers Food","Caterers","Booker Limited Portsmouth","Supplies and Services related expenditure","07/01/2020","23.98","Director of Housing, Neighbourhood and Building Services"
"Caterers Food","Caterers","Bookerecomm","Supplies and Services related expenditure","07/01/2020","153.83","Director of Housing, Neighbourhood and Building Services"
"Caterers Food","Caterers","Bookerecomm","Supplies and Services related expenditure","07/01/2020","68.74","Director of Housing, Neighbourhood and Building Services"
"Hotels And Motels","Premier Travel Inns","Premier Inn44537330","Supplies and Services related expenditure","07/01/2020","102.50","Director of Children's Services and Education"
"Business To Business Eqpt/Furn","Stationery/Office Supplies","Www.Postofficeshop.Co.Uk","Supplies and Services related expenditure","07/01/2020","178.49","Director of Children's Services and Education"
"Business To Business Facility/","Industrial Supplies - Def","Www.Arco.Co.Uk","Supplies and Services related expenditure","07/01/2020","4,752.00","Director of Adult Services"
"Business To Business Eqpt/Furn","Stationery/Office Supplies","Www.Banneruk.Com","Supplies and Services related expenditure","07/02/2020","30.37","Director of Housing, Neighbourhood and Building Services"
"Business Expenses/Services","Postage Stamps","Post Office Counter","Supplies and Services related expenditure","07/02/2020","15.60","Director of Portsmouth International Port"
"Automobile Rental","Motor Home/Rv Rentals","Southsea Leisure Park Vt","Agency and Third Party Payments related expenditure","07/02/2020","1,481.67","Director of Housing, Neighbourhood and Building Services"
"Other Supplies","Department Stores","Southern Co-Op 0007","Supplies and Services related expenditure","07/02/2020","7.79","Director of Children's Services and Education"
"Business To Business Facility/","Industrial Supplies - Def","Www.Arco.Co.Uk","Supplies and Services related expenditure","07/02/2020","-50.60","Director of Housing, Neighbourhood and Building Services"
"Medical","Lab/Med/Hospital Equipment","Wightman & Parrish Ltd","Premises related expenditure","07/02/2020","725.55","Director of Housing, Neighbourhood and Building Services"
"Government Service","Govt Serv - Default","Pcc Internet Payment","Supplies and Services related expenditure","07/02/2020","44.00","Director of Children's Services and Education"
"Other Supplies","Misc Speciality Retail","Amznmktplace","Supplies and Services related expenditure","07/02/2020","26.33","Director of Portsmouth International Port"
"Type of Retail Store","Grocery Stores/Supermarkets","Www.Iceland.Co.Uk","Supplies and Services related expenditure","07/02/2020","134.85","Director of Adult Services"
"Other Supplies","Misc Gen Merchandise - Def","Wilko Retail Limited","Supplies and Services related expenditure","07/02/2020","2.50","Director of Corporate Services"
"Business To Business Facility/","Hardware Equipment/Supplies","Croma Locksmiths & Sec","Supplies and Services related expenditure","07/02/2020","140.20","Director of Culture, Leisure & Regulatory Services"
"Facilities/Repair Supplies","Home Supply Warehouse Stores","Screwfix Direct","Supplies and Services related expenditure","07/02/2020","10.85","Director of Housing, Neighbourhood and Building Services"
"Type of Retail Store","Grocery Stores/Supermarkets","Tesco Store 3055","Supplies and Services related expenditure","07/02/2020","3.60","Director of Adult Services"
"Type of Retail Store","Grocery Stores/Supermarkets","Aldi Stores Ltd","Supplies and Services related expenditure","07/02/2020","38.12","Director of Adult Services"
"Business To Business Facility/","Industrial Supplies - Def","Www.Arco.Co.Uk","Premises related expenditure","07/02/2020","49.40","Director of Portsmouth International Port"
"Other Supplies","Misc Speciality Retail","Amznmktplace","Supplies and Services related expenditure","07/02/2020","38.33","Director of Adult Services"
"Government Service","Schools - Default","Vue*ncs Citb Hs&e Test","Supplies and Services related expenditure","07/02/2020","21.00","Director of Regeneration"
"Other Supplies","Department Stores","Southern Co-Op 0008","Supplies and Services related expenditure","07/02/2020","2.49","Director of Children's Services and Education"
"Other Supplies","Department Stores","Southern Co-Op 0008","Supplies and Services related expenditure","07/02/2020","7.65","Director of Children's Services and Education"
"Automobile Services & Supplies","Service Stations","Shell Fratton 178","Supplies and Services related expenditure","07/02/2020","8.80","Director of Regeneration"
"Medical","Lab/Med/Hospital Equipment","Wightman & Parrish","Premises related expenditure","07/02/2020","87.50","Director of Housing, Neighbourhood and Building Services"
"Medical","Lab/Med/Hospital Equipment","Wightman & Parrish","Premises related expenditure","07/02/2020","118.00","Director of Housing, Neighbourhood and Building Services"
"Other Supplies","Misc Speciality Retail","Value Products Ltd","Supplies and Services related expenditure","07/02/2020","135.40","Director of Housing, Neighbourhood and Building Services"
"Business To Business Facility/","Industrial Supplies - Def","Www.Arco.Co.Uk","Supplies and Services related expenditure","07/02/2020","17.02","Director of Housing, Neighbourhood and Building Services"
"Business Services","Advertising Services","Portsmouth Flyers","Supplies and Services related expenditure","07/02/2020","5,785.00","Director of Corporate Services"
"Business To Business Other Sup","Piece Goods/Notions/Dry Goods","Catering24","Supplies and Services related expenditure","07/02/2020","122.96","Director of Housing, Neighbourhood and Building Services"
"Miscellaneous","Continuity/Subscription Mercht","Zoom.Gbp","Supplies and Services related expenditure","07/02/2020","35.97","Director of Regeneration"
"Type of Retail Store","Hobby/Toy/Game Stores","Klarna * School Paper Is","Supplies and Services related expenditure","07/02/2020","113.97","Director of Children's Services and Education"
"Equipment And Furniture","Phone Serv/Equip Non-Util","Paypal","Supplies and Services related expenditure","07/02/2020","10.00","Director of Culture, Leisure & Regulatory Services"
"Hotels And Motels","Lodging/Hotels/Motels/Resorts","Portsmouth Inns","Supplies and Services related expenditure","07/02/2020","350.00","Director of Children's Services and Education"
"Facilities Maintenance","Clean/Maint/Janitoral Serv","Cjs Portsmouth Limited","Premises related expenditure","07/02/2020","355.72","Director of Housing, Neighbourhood and Building Services"
"Type of Retail Store","Grocery Stores/Supermarkets","Lidl Gb Portsmouth","Supplies and Services related expenditure","07/02/2020","14.00","Director of Housing, Neighbourhood and Building Services"
"Other Supplies","Misc Speciality Retail","Amznmktplace","Supplies and Services related expenditure","07/02/2020","35.99","Director of Housing, Neighbourhood and Building Services"
"Type of Retail Store","Grocery Stores/Supermarkets","Tesco Stores 4579","Supplies and Services related expenditure","07/02/2020","8.75","Director of Culture, Leisure & Regulatory Services"
"Other Supplies","Misc Speciality Retail","Amznmktplace","Supplies and Services related expenditure","07/02/2020","43.33","Director of Portsmouth International Port"
"Type of Retail Store","Electronics Sales","Currys Pc World","Supplies and Services related expenditure","07/02/2020","108.33","Director of Adult Services"
"Business To Business Eqpt/Furn","Stationery/Office Supplies","Www.Banneruk.Com","Supplies and Services related expenditure","07/02/2020","14.10","Director of Adult Services"
"Type of Retail Store","Grocery Stores/Supermarkets","Asda Stores","Supplies and Services related expenditure","07/02/2020","8.75","Director of Housing, Neighbourhood and Building Services"
"Type of Retail Store","Grocery Stores/Supermarkets","Asda Stores","Supplies and Services related expenditure","07/02/2020","10.00","Director of Housing, Neighbourhood and Building Services"
"Type of Retail Store","Grocery Stores/Supermarkets","Sainsburys S/mkts","Supplies and Services related expenditure","07/02/2020","10.00","Director of Children's Services and Education"
"Type of Retail Store","Grocery Stores/Supermarkets","Sainsburys S/mkts","Supplies and Services related expenditure","07/02/2020","3.42","Director of Children's Services and Education"
"Type of Retail Store","Grocery Stores/Supermarkets","Sainsburys S/mkts","Supplies and Services related expenditure","07/02/2020","20.30","Director of Children's Services and Education"
"Type of Retail Store","Drug Stores & Pharmacies","Sovereign Pharmacy","Supplies and Services related expenditure","07/02/2020","50.00","Director of Children's Services and Education"
"Equipment And Furniture","Equip/Furn Rent/Lease Serv","T J Waste & Recycling","Premises related expenditure","07/02/2020","237.00","Director of Children's Services and Education"
"Other Supplies","Misc Speciality Retail","Amznmktplace","Supplies and Services related expenditure","07/02/2020","2.48","Director of Children's Services and Education"
"Other Supplies","Misc Speciality Retail","Amznmktplace","Supplies and Services related expenditure","07/02/2020","2.48","Director of Children's Services and Education"
"Other Supplies","Misc Speciality Retail","Amznmktplace","Supplies and Services related expenditure","07/02/2020","2.48","Director of Children's Services and Education"
"Other Supplies","Misc Speciality Retail","Amznmktplace","Supplies and Services related expenditure","07/02/2020","2.82","Director of Children's Services and Education"
"Other Supplies","Misc Speciality Retail","Amznmktplace","Supplies and Services related expenditure","07/02/2020","2.82","Director of Children's Services and Education"
"Other Supplies","Misc Speciality Retail","Amznmktplace","Supplies and Services related expenditure","07/02/2020","20.73","Director of Children's Services and Education"
"Other Supplies","Misc Speciality Retail","Amznmktplace","Supplies and Services related expenditure","07/02/2020","33.25","Director of Children's Services and Education"
"Other Supplies","Misc Speciality Retail","Amznmktplace","Supplies and Services related expenditure","07/02/2020","67.57","Director of Children's Services and Education"
"Other Supplies","Misc Speciality Retail","Amznmktplace","Supplies and Services related expenditure","07/02/2020","74.42","Director of Children's Services and Education"
"Other Supplies","Misc Speciality Retail","Amznmktplace","Supplies and Services related expenditure","07/02/2020","116.67","Director of Children's Services and Education"
"Other Supplies","Misc Speciality Retail","Amznmktplace","Supplies and Services related expenditure","07/02/2020","116.67","Director of Children's Services and Education"
"Other Supplies","Misc Speciality Retail","Amznmktplace","Supplies and Services related expenditure","07/02/2020","5.43","Director of Housing, Neighbourhood and Building Services"
"Business Services","Business Services - Default","Norse South East Ltd","Supplies and Services related expenditure","07/02/2020","20.83","Director of Housing, Neighbourhood and Building Services"
"Medical","Lab/Med/Hospital Equipment","Wightman & Parrish Ltd","Supplies and Services related expenditure","07/02/2020","26.88","Director of Housing, Neighbourhood and Building Services"
"Utility","Phone Serv/Equip Utility","Ee Top Up Vesta","Supplies and Services related expenditure","07/02/2020","10.00","Director of Children's Services and Education"
"Other Supplies","Misc Gen Merchandise - Def","Www.Totalmerchandise","Supplies and Services related expenditure","07/02/2020","189.17","Director of Children's Services and Education"
"Other Supplies","Misc Speciality Retail","Amznmktplace","Supplies and Services related expenditure","07/02/2020","11.29","Director of Children's Services and Education"
"Business To Business Eqpt/Furn","Stationery/Office Supplies","Www.Banneruk.Com","Supplies and Services related expenditure","07/02/2020","9.52","Director of Corporate Services"
"Miscellaneous","Other Direct Marketers","Amazon.Co.Uk","Supplies and Services related expenditure","07/02/2020","637.00","Director of Children's Services and Education"
"Other Supplies","Discount Stores","Argos Ltd","Supplies and Services related expenditure","07/02/2020","150.00","Director of Children's Services and Education"
"Utility","Phone Serv/Equip Utility","Giffgaff","Supplies and Services related expenditure","07/02/2020","20.00","Director of Children's Services and Education"
"Other Supplies","Misc Gen Merchandise - Def","Wilko Retail Limited","Supplies and Services related expenditure","07/02/2020","3.00","Director of Culture, Leisure & Regulatory Services"
"Type of Retail Store","Grocery Stores/Supermarkets","Asda George Com Leeds","Supplies and Services related expenditure","07/02/2020","-30.00","Director of Children's Services and Education"
"Facilities/Repair Supplies","Home Supply Warehouse Stores","B & Q 1260","Premises related expenditure","07/02/2020","13.60","Director of Adult Services"
"Business Expenses/Services","Postage Stamps","The Post Office","Supplies and Services related expenditure","07/02/2020","123.60","Director of Children's Services and Education"
"Business To Business Eqpt/Furn","Stationery/Office Supplies","Www.Banneruk.Com","Supplies and Services related expenditure","07/02/2020","22.75","Director of Culture, Leisure & Regulatory Services"
"Other Supplies","Misc Speciality Retail","Amznmktplace","Supplies and Services related expenditure","07/02/2020","62.48","Director of Children's Services and Education"
"Auto/Vehicle Expenses","Auto Service Shops/Non Dealer","Boarhunt Group-Vt","Supplies and Services related expenditure","07/02/2020","19.15","Director of Children's Services and Education"
"Auto/Vehicle Expenses","Auto Service Shops/Non Dealer","Boarhunt Group-Vt","Supplies and Services related expenditure","07/02/2020","592.44","Director of Children's Services and Education"
"Business To Business Facility/","Industrial Supplies - Def","Www.Arco.Co.Uk","Supplies and Services related expenditure","07/02/2020","8.44","Director of Housing, Neighbourhood and Building Services"
"Business To Business Eqpt/Furn","Stationery/Office Supplies","Www.Banneruk.Com","Supplies and Services related expenditure","07/02/2020","4.36","Director of Adult Services"
"Business To Business Eqpt/Furn","Stationery/Office Supplies","Www.Banneruk.Com","Supplies and Services related expenditure","07/02/2020","34.69","Director of Adult Services"
"Utility","Utilities/Elec/Gas/H2O/Sani","Digdat","Premises related expenditure","07/02/2020","30.00","Director of Housing, Neighbourhood and Building Services"
"Equipment And Furniture","Furniture/Equip Stores","Ikea Ltd Shop Online","Supplies and Services related expenditure","07/02/2020","314.54","Director of Children's Services and Education"
"Transportation Conveyor","Passenger Railways","Cross Country Trains","Transport related expenditure","07/02/2020","93.00","Director of Children's Services and Education"
"Transportation Conveyor","Passenger Railways","Cross Country Trains","Transport related expenditure","07/02/2020","-93.00","Director of Children's Services and Education"
"Other Supplies","Misc Speciality Retail","Amznmktplace","Supplies and Services related expenditure","07/02/2020","11.38","Director of Children's Services and Education"
"Other Supplies","Misc Speciality Retail","Amznmktplace","Supplies and Services related expenditure","07/02/2020","24.99","Director of Children's Services and Education"
"Business To Business Eqpt/Furn","Stationery/Office Supplies","Www.Banneruk.Com","Supplies and Services related expenditure","07/02/2020","26.82","Director of Children's Services and Education"
"Type of Retail Store","Grocery Stores/Supermarkets","Tesco Stores 4579","Supplies and Services related expenditure","07/02/2020","12.50","Director of Children's Services and Education"
"Type of Retail Store","Grocery Stores/Supermarkets","Tesco Stores 4579","Supplies and Services related expenditure","07/02/2020","7.50","Director of Children's Services and Education"
"Type of Retail Store","Grocery Stores/Supermarkets","Tesco Stores 4579","Premises related expenditure","07/02/2020","11.67","Director of Children's Services and Education"
"Type of Retail Store","Grocery Stores/Supermarkets","Tesco Stores 4579","Agency and Third Party Payments related expenditure","07/02/2020","8.33","Director of Children's Services and Education"
"Type of Retail Store","Grocery Stores/Supermarkets","Tesco Stores 4579","Supplies and Services related expenditure","07/02/2020","10.00","Director of Children's Services and Education"
"Type of Retail Store","Grocery Stores/Supermarkets","Tesco Stores 4579","Premises related expenditure","07/02/2020","1.67","Director of Children's Services and Education"
"Type of Retail Store","Grocery Stores/Supermarkets","Tesco Stores 4579","Supplies and Services related expenditure","07/02/2020","3.32","Director of Children's Services and Education"
"Type of Retail Store","Grocery Stores/Supermarkets","Tesco Stores 4579","Supplies and Services related expenditure","07/02/2020","80.59","Director of Children's Services and Education"
"Facilities/Repair Supplies","Home Supply Warehouse Stores","Screwfix Direct","Premises related expenditure","07/02/2020","63.90","Director of Culture, Leisure & Regulatory Services"
"Facilities/Repair Supplies","Home Supply Warehouse Stores","Screwfix Direct","Premises related expenditure","07/02/2020","90.78","Director of Culture, Leisure & Regulatory Services"
"Facilities/Repair Supplies","Glass/Paint/Wallpaper Store","Johnstones Dec Centre","Premises related expenditure","07/02/2020","180.00","Director of Culture, Leisure & Regulatory Services"
"Business Expenses/Services","Stationery Stores","The-Warehouse-Onli","Premises related expenditure","07/02/2020","249.00","Director of Culture, Leisure & Regulatory Services"
"Business To Business Eqpt/Furn","Computer Software Stores","Sp * Sg World","Supplies and Services related expenditure","07/02/2020","28.50","Director of Children's Services and Education"
"Miscellaneous","Charitable/Soc Service Orgs","British Red Cross","Employees related expenditure","07/02/2020","199.00","Director of Children's Services and Education"
"Government Service","Schools - Default","Ubuntulearning","Supplies and Services related expenditure","07/02/2020","115.46","Director of Children's Services and Education"
"Business To Business Eqpt/Furn","Stationery/Office Supplies","Www.Banneruk.Com","Supplies and Services related expenditure","07/02/2020","76.38","Director of Corporate Services"
"Business To Business Eqpt/Furn","Stationery/Office Supplies","Www.Banneruk.Com","Supplies and Services related expenditure","07/02/2020","23.63","Director of Regeneration"
"Business To Business Eqpt/Furn","Stationery/Office Supplies","Www.Banneruk.Com","Supplies and Services related expenditure","07/02/2020","5.06","Director of Regeneration"
"Other Supplies","Misc Speciality Retail","Amazon.Co.Uk","Supplies and Services related expenditure","07/02/2020","3.88","Director of Children's Services and Education"
"Other Supplies","Misc Speciality Retail","Amznmktplace","Supplies and Services related expenditure","07/02/2020","29.97","Director of Children's Services and Education"
"Business To Business Facility/","Industrial Supplies - Def","Www.Arco.Co.Uk","Supplies and Services related expenditure","07/02/2020","13.42","Director of Housing, Neighbourhood and Building Services"
"Hotels And Motels","Premier Travel Inns","Premier Inn44537330","Transport related expenditure","07/02/2020","-102.50","Director of Children's Services and Education"
"Business To Business Facility/","Industrial Supplies - Def","Www.Arco.Co.Uk","Supplies and Services related expenditure","07/02/2020","8.84","Director of Housing, Neighbourhood and Building Services"
"Business To Business Eqpt/Furn","Stationery/Office Supplies","Www.Postofficeshop.Co.Uk","Supplies and Services related expenditure","07/02/2020","90.49","Director of Children's Services and Education"
"Hotels And Motels","Lodging/Hotels/Motels/Resorts","Hi Portsmouth - Re","Supplies and Services related expenditure","07/03/2020","396.00","Director of Housing, Neighbourhood and Building Services"
"Facilities/Repair Supplies","Hardware Stores","Www.Toolstation.Com","Premises related expenditure","07/03/2020","4.47","Director of Adult Services"
"Equipment And Furniture","Phone Serv/Equip Non-Util","Scancom#","Supplies and Services related expenditure","07/03/2020","10.00","Director of Housing, Neighbourhood and Building Services"
"Freight/Courier/Warehouse Svcs","Public Warehousing","Www.Safestore.Co.Uk","Premises related expenditure","07/03/2020","49.60","Director of Housing, Neighbourhood and Building Services"
"Freight/Courier/Warehouse Svcs","Public Warehousing","Www.Safestore.Co.Uk","Premises related expenditure","07/03/2020","77.07","Director of Housing, Neighbourhood and Building Services"
"Business To Business Facility/","Industrial Supplies - Def","Www.Arco.Co.Uk","Supplies and Services related expenditure","07/03/2020","19.23","Director of Housing, Neighbourhood and Building Services"
"Other Supplies","Misc Gen Merchandise - Def","Wilko Retail Limited","Supplies and Services related expenditure","07/03/2020","22.96","Director of Housing, Neighbourhood and Building Services"
"Personal Service Provider","Professional Services - Def","Www.Jdtrainingltd.Co.U","Supplies and Services related expenditure","07/03/2020","25.99","Director of Children's Services and Education"
"Business To Business Eqpt/Furn","Stationery/Office Supplies","Www.Banneruk.Com","Supplies and Services related expenditure","07/03/2020","26.97","Director of Regeneration"
"Type of Retail Store","Grocery Stores/Supermarkets","Iceland","Supplies and Services related expenditure","07/03/2020","9.45","Director of Children's Services and Education"
"Digital Goods","Digital Goods - Games","Microsoft*xbox","Agency and Third Party Payments related expenditure","07/03/2020","15.99","Director of Children's Services and Education"
"Other Supplies","Misc Speciality Retail","Amznmktplace","Premises related expenditure","07/03/2020","22.49","Director of Children's Services and Education"
"Miscellaneous","Other Direct Marketers","Amazon.Co.Uk","Supplies and Services related expenditure","07/03/2020","12.68","Director of Children's Services and Education"
"Other Supplies","Misc Speciality Retail","Amazon.Co.Uk","Supplies and Services related expenditure","07/03/2020","31.50","Director of Housing, Neighbourhood and Building Services"
"Medical","Lab/Med/Hospital Equipment","Wightman & Parrish","Premises related expenditure","07/03/2020","74.58","Director of Housing, Neighbourhood and Building Services"
"Automobile Services & Supplies","Service Stations","Shell Fratton 178","Premises related expenditure","07/03/2020","62.44","Director of Regeneration"
"Auto/Vehicle Expenses","Tire Retread/Repair Shops","Setyres","Transport related expenditure","07/03/2020","7.98","Director of Culture, Leisure & Regulatory Services"
"Other Supplies","Discount Stores","Argos Ltd","Supplies and Services related expenditure","07/03/2020","47.38","Director of Children's Services and Education"
"Business To Business Eqpt/Furn","Stationery/Office Supplies","Www.Banneruk.Com","Supplies and Services related expenditure","07/03/2020","31.05","Director of Housing, Neighbourhood and Building Services"
"Business To Business Eqpt/Furn","Stationery/Office Supplies","Www.Banneruk.Com","Supplies and Services related expenditure","07/03/2020","211.05","Director of Housing, Neighbourhood and Building Services"
"Miscellaneous","Other Direct Marketers","Amazon.Co.Uk","Supplies and Services related expenditure","07/03/2020","43.86","Director of Children's Services and Education"
"Government Service","Govt Serv - Default","Hampshire County Counc","Supplies and Services related expenditure","07/03/2020","25.80","Director of Adult Services"
"Type of Retail Store","Electronics Sales","Currys Online","Supplies and Services related expenditure","07/03/2020","258.32","Director of Portsmouth International Port"
"Other Supplies","Misc Speciality Retail","Amazon.Co.Uk","Supplies and Services related expenditure","07/03/2020","11.71","Director of Finance & Resources"
"Business To Business Services","Misc Publishing & Printing","Motive Graphics","Supplies and Services related expenditure","07/03/2020","11.24","Director of Regeneration"
"Business To Business Eqpt/Furn","Computer Software Stores","Sp * Street Solutions","Supplies and Services related expenditure","07/03/2020","124.92","Director of Regeneration"
"Business To Business Eqpt/Furn","Stationery/Office Supplies","Www.Banneruk.Com","Supplies and Services related expenditure","07/03/2020","8.68","Director of Regeneration"
"Amusement/Entertainment","Theatrical Producers","Jpimedia","Supplies and Services related expenditure","07/03/2020","78.00","Director of Regeneration"
"Business Services","Business Services - Default","Eb *urban Design Summe","Supplies and Services related expenditure","07/03/2020","150.00","Director of Regeneration"
"Facilities/Repair Supplies","Home Supply Warehouse Stores","Screwfix Direct","Supplies and Services related expenditure","07/03/2020","7.02","Director of Housing, Neighbourhood and Building Services"
"Facilities/Repair Supplies","Home Supply Warehouse Stores","Screwfix Direct","Supplies and Services related expenditure","07/03/2020","15.81","Director of Housing, Neighbourhood and Building Services"
"Government Service","Govt Serv - Default","Hampshire County Counc","Premises related expenditure","07/03/2020","16.04","Director of Children's Services and Education"
"Government Service","Govt Serv - Default","Hampshire County Counc","Supplies and Services related expenditure","07/03/2020","23.82","Director of Children's Services and Education"
"Government Service","Govt Serv - Default","Hampshire County Counc","Supplies and Services related expenditure","07/03/2020","54.00","Director of Children's Services and Education"
"Other Supplies","Misc Speciality Retail","Amznmktplace","Supplies and Services related expenditure","07/03/2020","25.83","Director of Children's Services and Education"
"Other Supplies","Misc Speciality Retail","Amznmktplace","Supplies and Services related expenditure","07/03/2020","31.17","Director of Children's Services and Education"
"Other Supplies","Misc Speciality Retail","Amznmktplace","Supplies and Services related expenditure","07/03/2020","45.00","Director of Children's Services and Education"
"Other Supplies","Misc Speciality Retail","Amznmktplace","Supplies and Services related expenditure","07/03/2020","66.58","Director of Children's Services and Education"
"Other Supplies","Misc Speciality Retail","Amznmktplace","Supplies and Services related expenditure","07/03/2020","109.50","Director of Children's Services and Education"
"Personal Service Provider","Professional Services - Def","Www.Ofcom.Org.Uk","Supplies and Services related expenditure","07/03/2020","112.50","Director of Portsmouth International Port"
"Business Expenses/Services","Stationery Stores","Miw Office Solutio","Supplies and Services related expenditure","07/03/2020","1,687.55","Director of Children's Services and Education"
"Type of Retail Store","Grocery Stores/Supermarkets","Tesco Stores 4611","Supplies and Services related expenditure","07/03/2020","5.10","Director of Children's Services and Education"
"Eating And Drinking Places","Fast Food Restaurants","Speedy Pizza & Kens Fr","Supplies and Services related expenditure","07/03/2020","5.99","Director of Children's Services and Education"
"Other Supplies","Misc Speciality Retail","Amznmktplace","Supplies and Services related expenditure","07/03/2020","14.97","Director of Children's Services and Education"
"Hotels And Motels","Lodging/Hotels/Motels/Resorts","Hi Portsmouth - Re","Agency and Third Party Payments related expenditure","07/03/2020","515.83","Director of Housing, Neighbourhood and Building Services"
"Business To Business Eqpt/Furn","Stationery/Office Supplies","Www.Banneruk.Com","Supplies and Services related expenditure","07/03/2020","26.71","Director of Culture, Leisure & Regulatory Services"
"Miscellaneous","Continuity/Subscription Mercht","Amazon Prime","Supplies and Services related expenditure","07/03/2020","6.66","Director of Children's Services and Education"
"Business To Business Eqpt/Furn","Book Stores","Waterstones.Com","Supplies and Services related expenditure","07/03/2020","25.98","Director of Children's Services and Education"
"Business To Business Eqpt/Furn","Commercial Equipment - Default","Ian.Rose@firststop","Premises related expenditure","07/03/2020","137.95","Director of Children's Services and Education"
"Business Expenses/Services","Postage Stamps","Post Office Counter","Supplies and Services related expenditure","07/03/2020","21.43","Director of Children's Services and Education"
"Auto/Vehicle Expenses","Auto Service Shops/Non Dealer","Boarhunt Group-Vt","Supplies and Services related expenditure","07/03/2020","221.04","Director of Children's Services and Education"
"Other Supplies","Misc Speciality Retail","Amznmktplace","Premises related expenditure","07/03/2020","41.65","Director of Children's Services and Education"
"Facilities/Repair Supplies","Home Supply Warehouse Stores","Screwfix Direct","Premises related expenditure","07/03/2020","66.65","Director of Children's Services and Education"
"Automobile Services & Supplies","Service Stations","Tesco Pfs 2339","Transport related expenditure","07/03/2020","16.68","Director of Children's Services and Education"
"Business To Business Facility/","Hardware Equipment/Supplies","Croma Locksmiths & Sec","Supplies and Services related expenditure","07/03/2020","14.47","Director of Housing, Neighbourhood and Building Services"
"Other Supplies","Misc Speciality Retail","Amznmktplace","Supplies and Services related expenditure","07/03/2020","18.94","Director of Adult Services"
"Business To Business Eqpt/Furn","Stationery/Office Supplies","Www.Banneruk.Com","Supplies and Services related expenditure","07/03/2020","23.48","Director of Adult Services"
"Other Supplies","Misc Speciality Retail","Amznmktplace","Supplies and Services related expenditure","07/03/2020","41.00","Director of Adult Services"
"Business Services","Business Services - Default","Carrier Bag Shop","Supplies and Services related expenditure","07/03/2020","202.50","Director of Culture, Leisure & Regulatory Services"
"Other Supplies","Combination Catalog & Retail","Whsmith.Co.Uk","Supplies and Services related expenditure","07/03/2020","40.00","Director of Children's Services and Education"
"Medical","Lab/Med/Hospital Equipment","Wightman & Parrish","Premises related expenditure","07/03/2020","59.66","Director of Housing, Neighbourhood and Building Services"
"Business To Business Eqpt/Furn","Stationery/Office Supplies","Www.Banneruk.Com","Supplies and Services related expenditure","07/03/2020","15.99","Director of Children's Services and Education"
"Miscellaneous","Other Direct Marketers","Amazon.Co.Uk","Supplies and Services related expenditure","07/03/2020","7.48","Solent LEP"
"Other Supplies","Misc Speciality Retail","Amznmktplace","Supplies and Services related expenditure","07/03/2020","15.83","Solent LEP"
"Personal Service Provider","Mgmt/Consult/Public Rel Ser","Cim","Supplies and Services related expenditure","07/03/2020","65.00","Solent LEP"
"Other Supplies","Misc Speciality Retail","Amznmktplace","Supplies and Services related expenditure","07/03/2020","133.33","Solent LEP"
"Business To Business Eqpt/Furn","Stationery/Office Supplies","Www.Banneruk.Com","Supplies and Services related expenditure","07/03/2020","4.62","Director of Finance & Resources"
"Business To Business Eqpt/Furn","Stationery/Office Supplies","Www.Banneruk.Com","Supplies and Services related expenditure","07/03/2020","8.94","Director of Finance & Resources"
"Miscellaneous","Continuity/Subscription Mercht","Amazon Prime","Supplies and Services related expenditure","07/03/2020","7.99","Director of Children's Services and Education"
"Other Supplies","Misc Gen Merchandise - Def","Trade Washrooms","Premises related expenditure","07/03/2020","85.50","Director of Children's Services and Education"
"Miscellaneous","Other Direct Marketers","Amazon.Co.Uk","Supplies and Services related expenditure","07/03/2020","9.76","Director of Children's Services and Education"
"Miscellaneous","Other Direct Marketers","Amazon.Co.Uk","Supplies and Services related expenditure","07/03/2020","11.71","Director of Children's Services and Education"
"Other Supplies","Misc Speciality Retail","Amznmktplace","Supplies and Services related expenditure","07/03/2020","24.99","Director of Children's Services and Education"
"Facilities/Repair Supplies","Lumber/Build. Supply Stores","Selco Trading Ctr","Premises related expenditure","07/03/2020","27.50","Director of Adult Services"
"Facilities/Repair Supplies","Home Supply Warehouse Stores","B & Q 1260","Premises related expenditure","07/03/2020","33.87","Director of Adult Services"
"Miscellaneous","Other Direct Marketers","Amazon.Co.Uk","Supplies and Services related expenditure","07/03/2020","58.33","Director of Children's Services and Education"
"Business To Business Eqpt/Furn","Commercial Equipment - Default","Tri Pack Supplies Limi","Supplies and Services related expenditure","07/03/2020","539.40","Director of Children's Services and Education"
"Type of Retail Store","Grocery Stores/Supermarkets","Lidl Gb Portsmouth","Transport related expenditure","07/03/2020","12.05","Director of Children's Services and Education"
"Other Supplies","Discount Stores","B&m Retail","Premises related expenditure","07/03/2020","16.46","Director of Housing, Neighbourhood and Building Services"
"Business Services","Business Services - Default","Card Pro International","Supplies and Services related expenditure","07/03/2020","738.50","Director of Regeneration"
"Utility","Phone Serv/Equip Utility","Mip*tesco Mobile Topup","Supplies and Services related expenditure","07/03/2020","25.00","Director of Children's Services and Education"
"Miscellaneous","Other Direct Marketers","Amazon.Co.Uk","Supplies and Services related expenditure","07/03/2020","6.18","Director of Children's Services and Education"
"Government Service","Govt Serv - Default","Hampshire County Counc","Supplies and Services related expenditure","07/03/2020","52.64","Director of Children's Services and Education"
"Medical","Lab/Med/Hospital Equipment","Wightman & Parrish","Premises related expenditure","07/03/2020","86.30","Director of Housing, Neighbourhood and Building Services"
"Medical","Lab/Med/Hospital Equipment","Wightman & Parrish","Premises related expenditure","07/03/2020","17.12","Director of Adult Services"
"Medical","Lab/Med/Hospital Equipment","Wightman & Parrish Ltd","Premises related expenditure","07/03/2020","117.33","Director of Adult Services"
"Facilities/Repair Supplies","Home Supply Warehouse Stores","B&q Direct","Supplies and Services related expenditure","07/03/2020","33.33","Director of Housing, Neighbourhood and Building Services"
"Type of Retail Store","Grocery Stores/Supermarkets","Tesco Stores 4579","Supplies and Services related expenditure","07/04/2020","2.96","Director of Children's Services and Education"
"Other Supplies","Misc Speciality Retail","Amznmktplace","Supplies and Services related expenditure","07/04/2020","39.93","Director of Children's Services and Education"
"Miscellaneous","Other Direct Marketers","Amazon.Co.Uk","Supplies and Services related expenditure","07/04/2020","95.94","Director of Children's Services and Education"
"Eating And Drinking Places","Fast Food Restaurants","McDonalds","Agency and Third Party Payments related expenditure","07/04/2020","9.71","Director of Children's Services and Education"
"Eating And Drinking Places","Fast Food Restaurants","McDonalds","Agency and Third Party Payments related expenditure","07/04/2020","9.70","Director of Children's Services and Education"
"Eating And Drinking Places","Fast Food Restaurants","Www.Pizzahut.Co.Uk","Agency and Third Party Payments related expenditure","07/04/2020","17.28","Director of Children's Services and Education"
"Eating And Drinking Places","Fast Food Restaurants","Www.Pizzahut.Co.Uk","Agency and Third Party Payments related expenditure","07/04/2020","17.28","Director of Children's Services and Education"
"Miscellaneous","Continuity/Subscription Mercht","Mailchimp","Supplies and Services related expenditure","07/04/2020","58.32","Director of Culture, Leisure & Regulatory Services"
"Miscellaneous","Other Direct Marketers","Amazon.Co.Uk","Supplies and Services related expenditure","07/04/2020","637.00","Director of Children's Services and Education"
"Type of Retail Store","Grocery Stores/Supermarkets","Asda Stores 7134","Supplies and Services related expenditure","07/04/2020","5.00","Director of Children's Services and Education"
"Other Supplies","Misc Speciality Retail","Amznmktplace","Premises related expenditure","07/04/2020","26.50","Director of Children's Services and Education"
"Other Supplies","Misc Speciality Retail","Amznmktplace","Supplies and Services related expenditure","07/04/2020","26.63","Director of Adult Services"
"Other Supplies","Misc Speciality Retail","Amznmktplace","Supplies and Services related expenditure","07/04/2020","33.29","Director of Adult Services"
"Type of Retail Store","Grocery Stores/Supermarkets","Www.Aldi.Co.Uk","Supplies and Services related expenditure","07/04/2020","29.16","Director of Children's Services and Education"
"Type of Retail Store","Grocery Stores/Supermarkets","Tesco Stores 4579","Supplies and Services related expenditure","07/04/2020","-6.77","Director of Children's Services and Education"
"Digital Goods","Digital Goods - Games","Nintendo Of Europe Gmbh","Agency and Third Party Payments related expenditure","07/04/2020","7.99","Director of Children's Services and Education"
"Type of Retail Store","Grocery Stores/Supermarkets","Tesco Stores 4579","Agency and Third Party Payments related expenditure","07/04/2020","1.50","Director of Children's Services and Education"
"Type of Retail Store","Grocery Stores/Supermarkets","Tesco Stores 4579","Agency and Third Party Payments related expenditure","07/04/2020","1.50","Director of Children's Services and Education"
"Type of Retail Store","Grocery Stores/Supermarkets","Tesco Stores 4579","Supplies and Services related expenditure","07/04/2020","24.00","Director of Children's Services and Education"
"Type of Retail Store","Grocery Stores/Supermarkets","Tesco Stores 4579","Premises related expenditure","07/04/2020","8.33","Director of Children's Services and Education"
"Type of Retail Store","Grocery Stores/Supermarkets","Lidl Gb Portsmouth","Transport related expenditure","07/04/2020","3.03","Director of Children's Services and Education"
"Auto/Vehicle Expenses","Automated Fuel Dispensers","Tesco Pay At Pump 4274","Transport related expenditure","07/05/2020","60.31","Director of Regeneration"
"Digital Goods","Digital Goods - Games","Nintendo Of Europe Gmbh","Agency and Third Party Payments related expenditure","07/05/2020","3.99","Director of Children's Services and Education"
"Business To Business Eqpt/Furn","Book Stores","Waterstones","Agency and Third Party Payments related expenditure","07/05/2020","9.99","Director of Children's Services and Education"
"Digital Goods","Digital Goods - Games","Microsoft*xbox","Agency and Third Party Payments related expenditure","07/05/2020","17.49","Director of Children's Services and Education"
"Type of Retail Store","Music Stores/Pianos","Joytunes","Supplies and Services related expenditure","07/05/2020","17.99","Director of Children's Services and Education"
"Type of Retail Store","Grocery Stores/Supermarkets","Tesco Stores 4579","Agency and Third Party Payments related expenditure","07/05/2020","35.00","Director of Children's Services and Education"
"Type of Retail Store","Grocery Stores/Supermarkets","Tesco Stores 4579","Supplies and Services related expenditure","07/05/2020","1.00","Director of Children's Services and Education"
"Other Supplies","Misc Speciality Retail","Amznmktplace","Supplies and Services related expenditure","07/05/2020","5.79","Director of Adult Services"
"Other Supplies","Misc Speciality Retail","Amznmktplace","Supplies and Services related expenditure","07/05/2020","109.98","Director of Culture, Leisure & Regulatory Services"
"Business Services","Advertising Services","Facebk Lu8mmt68z2","Supplies and Services related expenditure","07/05/2020","300.00","Director of Corporate Services"
"Other Supplies","Department Stores","Southern Co-Op 0008","Supplies and Services related expenditure","07/05/2020","17.15","Director of Children's Services and Education"
"Miscellaneous","Other Direct Marketers","Amazon.Co.Uk","Agency and Third Party Payments related expenditure","07/05/2020","30.00","Director of Children's Services and Education"
"Other Supplies","Misc Speciality Retail","Amznmktplace","Supplies and Services related expenditure","07/05/2020","6.70","Director of Children's Services and Education"
"Other Supplies","Misc Speciality Retail","Amznmktplace","Supplies and Services related expenditure","07/05/2020","41.88","Director of Children's Services and Education"
"Other Supplies","Misc Speciality Retail","Amznmktplace","Supplies and Services related expenditure","07/05/2020","24.99","Director of Children's Services and Education"
"Other Supplies","Misc Speciality Retail","Amznmktplace","Supplies and Services related expenditure","07/05/2020","29.25","Director of Children's Services and Education"
"Other Supplies","Misc Speciality Retail","Amznmktplace","Supplies and Services related expenditure","07/05/2020","79.99","Solent LEP"
"Transportation Conveyor","Passenger Railways","Sw Railway App","Transport related expenditure","07/05/2020","-73.00","Director of Children's Services and Education"
"Transportation Conveyor","Passenger Railways","Sw Railway App","Transport related expenditure","07/05/2020","-80.20","Director of Children's Services and Education"
"Transportation Conveyor","Passenger Railways","Sw Railway App","Transport related expenditure","07/05/2020","-87.80","Director of Children's Services and Education"
"Transportation Conveyor","Passenger Railways","Sw Railway App","Transport related expenditure","07/05/2020","-87.80","Director of Children's Services and Education"
"Eating And Drinking Places","Eating Places/Restaurants","Greggs Plc","Agency and Third Party Payments related expenditure","07/05/2020","1.04","Director of Children's Services and Education"
"Eating And Drinking Places","Eating Places/Restaurants","Greggs Plc","Agency and Third Party Payments related expenditure","07/05/2020","2.58","Director of Children's Services and Education"
"Utility","Computer Network/Info Svcs","Fasthosts Internet","Supplies and Services related expenditure","07/05/2020","55.00","Director of Children's Services and Education"
"Miscellaneous","Other Direct Marketers","Amazon.Co.Uk","Supplies and Services related expenditure","07/05/2020","18.62","Director of Children's Services and Education"
"Other Supplies","Misc Speciality Retail","Amznmktplace","Supplies and Services related expenditure","07/05/2020","77.45","Director of Children's Services and Education"
"Other Supplies","Misc Speciality Retail","Amznmktplace","Supplies and Services related expenditure","07/05/2020","134.25","Director of Children's Services and Education"
"Business Services","Advertising Services","Google Ads5247259773","Supplies and Services related expenditure","07/06/2020","500.00","Director of Children's Services and Education"
"Type of Retail Store","Grocery Stores/Supermarkets","Tesco Stores 4579","Supplies and Services related expenditure","07/06/2020","80.53","Director of Children's Services and Education"
"Transportation Conveyor","Parking Lots, Meters, Garages","Ncp Portsmouth.","Transport related expenditure","07/05/2020","4.33","Director of Children's Services and Education"
"Clothing Services","Family Clothing Stores","Primark","Supplies and Services related expenditure","07/05/2020","7.50","Director of Children's Services and Education"
"Clothing Services","Family Clothing Stores","Primark","Supplies and Services related expenditure","07/05/2020","6.00","Director of Children's Services and Education"
"Business To Business Facility/","Industrial Supplies - Def","Www.Arco.Co.Uk","Supplies and Services related expenditure","07/05/2020","47.45","Director of Housing, Neighbourhood and Building Services"
"Other Supplies","Misc Speciality Retail","Amznmktplace","Supplies and Services related expenditure","07/06/2020","8.33","Director of Housing, Neighbourhood and Building Services"
"Freight/Courier/Warehouse Svcs","Public Warehousing","Www.Safestore.Co.Uk","Premises related expenditure","07/06/2020","74.40","Director of Housing, Neighbourhood and Building Services"
"Freight/Courier/Warehouse Svcs","Public Warehousing","Www.Safestore.Co.Uk","Premises related expenditure","07/06/2020","223.32","Director of Housing, Neighbourhood and Building Services"
"Other Supplies","Misc Gen Merchandise - Def","Wilko Retail Limited","Supplies and Services related expenditure","07/06/2020","4.58","Director of Housing, Neighbourhood and Building Services"
"Type of Retail Store","Electronics Sales","Currys Online","Supplies and Services related expenditure","07/06/2020","83.33","Director of Housing, Neighbourhood and Building Services"
"Miscellaneous","Continuity/Subscription Mercht","Zoom.Gbp","Agency and Third Party Payments related expenditure","07/06/2020","11.99","Director of Culture, Leisure & Regulatory Services"
"Personal Service Provider","Professional Services - Def","Fabriclandb","Supplies and Services related expenditure","07/06/2020","401.00","Director of Children's Services and Education"
"Facilities/Repair Supplies","Lawn/Garden Supply/Nursery","Wwwtudorenvironmentalcou","Supplies and Services related expenditure","07/06/2020","56.10","Director of Culture, Leisure & Regulatory Services"
"Facilities/Repair Supplies","Home Supply Warehouse Stores","B & Q 1260","Premises related expenditure","07/06/2020","11.94","Director of Children's Services and Education"
"Type of Retail Store","Grocery Stores/Supermarkets","Tesco Store 3055","Supplies and Services related expenditure","07/06/2020","37.00","Director of Adult Services"
"Business Services","Business Services - Default","Eb *writing Funding Bi","Supplies and Services related expenditure","07/06/2020","37.00","Director of Culture, Leisure & Regulatory Services"
"Other Supplies","Misc Speciality Retail","Amznmktplace","Supplies and Services related expenditure","07/06/2020","12.49","Director of Children's Services and Education"
"Other Supplies","Misc Speciality Retail","Amznmktplace","Supplies and Services related expenditure","07/06/2020","3.75","Director of Children's Services and Education"
"Utility","Phone Serv/Equip Utility","Vesta Vodafone","Supplies and Services related expenditure","07/06/2020","16.67","Director of Children's Services and Education"
"Business To Business Facility/","Industrial Supplies - Def","Www.Theshopfittingshop","Premises related expenditure","07/06/2020","200.04","Director of Children's Services and Education"
"Facilities/Repair Supplies","Hardware Stores","Home Bargains","Premises related expenditure","07/06/2020","1.48","Director of Adult Services"
"Other Supplies","Misc Speciality Retail","Amznmktplace","Supplies and Services related expenditure","07/06/2020","8.33","Director of Housing, Neighbourhood and Building Services"
"Type of Retail Store","Grocery Stores/Supermarkets","Tesco Stores 4579","Supplies and Services related expenditure","07/06/2020","1.75","Director of Children's Services and Education"
"Type of Retail Store","Grocery Stores/Supermarkets","Tesco Stores 4579","Supplies and Services related expenditure","07/06/2020","6.70","Director of Children's Services and Education"
"Business To Business Eqpt/Furn","Stationery/Office Supplies","Www.Banneruk.Com","Supplies and Services related expenditure","07/06/2020","30.25","Director of Housing, Neighbourhood and Building Services"
"Government Service","Schools - Default","Classroom Capers","Supplies and Services related expenditure","07/06/2020","39.17","Director of Children's Services and Education"
"Business Expenses/Services","Stationery Stores","Mil/Superstickers-","Supplies and Services related expenditure","07/06/2020","110.02","Director of Children's Services and Education"
"Business Expenses/Services","Postage Stamps","The Post Office","Supplies and Services related expenditure","07/06/2020","3.10","Director of Culture, Leisure & Regulatory Services"
"Government Service","Govt Serv - Default","Portsmouth City Co","Transport related expenditure","07/06/2020","63.33","Director of Children's Services and Education"
"Type of Retail Store","Grocery Stores/Supermarkets","Asda Groceries Online","Supplies and Services related expenditure","07/06/2020","-1.18","Director of Children's Services and Education"
"Type of Retail Store","Grocery Stores/Supermarkets","Asda Groceries Online","Supplies and Services related expenditure","07/06/2020","2.00","Director of Children's Services and Education"
"Type of Retail Store","Grocery Stores/Supermarkets","Asda Groceries Online","Supplies and Services related expenditure","07/06/2020","260.49","Director of Children's Services and Education"
"Miscellaneous","Other Direct Marketers","Amazon.Co.Uk","Supplies and Services related expenditure","07/06/2020","24.99","Director of Children's Services and Education"
"Business Services","Business Services - Default","Www.Phs.Co.Uk","Supplies and Services related expenditure","07/06/2020","35.10","Director of Housing, Neighbourhood and Building Services"
"Business To Business Eqpt/Furn","Stationery/Office Supplies","Www.Banneruk.Com","Supplies and Services related expenditure","07/06/2020","100.59","Director of Adult Services"
"Equipment And Furniture","Phone Serv/Equip Non-Util","Media & Communications L","Supplies and Services related expenditure","07/06/2020","445.00","Director of Adult Services"
"Facilities/Repair Supplies","Home Supply Warehouse Stores","Screwfix Direct","Premises related expenditure","07/06/2020","42.48","Director of Housing, Neighbourhood and Building Services"
"Miscellaneous","Elementary/Secondary School","Karen Wilding Edu Ltd","Employees related expenditure","07/06/2020","99.00","Director of Children's Services and Education"
"Type of Retail Store","Grocery Stores/Supermarkets","Www.Iceland.Co.Uk","Supplies and Services related expenditure","07/06/2020","79.90","Director of Adult Services"
"Auto/Vehicle Expenses","Automotive Tire Stores","Hordean Tyres","Premises related expenditure","07/06/2020","14.17","Director of Portsmouth International Port"
"Other Supplies","Misc Speciality Retail","School Bottle","Supplies and Services related expenditure","07/06/2020","128.00","Director of Children's Services and Education"
"Other Supplies","Misc Speciality Retail","Timpson Ltd","Supplies and Services related expenditure","07/06/2020","5.63","Director of Culture, Leisure & Regulatory Services"
"Facilities/Repair Supplies","Hardware Stores","Www.Toolstation.Com","Premises related expenditure","07/06/2020","42.47","Director of Housing, Neighbourhood and Building Services"
"Caterers Food","Caterers","Bookerecomm","Supplies and Services related expenditure","07/06/2020","357.97","Director of Housing, Neighbourhood and Building Services"
"Caterers Food","Caterers","Bookerecomm","Supplies and Services related expenditure","07/06/2020","8.97","Director of Housing, Neighbourhood and Building Services"
"Medical","Lab/Med/Hospital Equipment","Wightman & Parrish","Premises related expenditure","07/06/2020","42.59","Director of Regeneration"
"Business To Business Eqpt/Furn","Stationery/Office Supplies","Www.Banneruk.Com","Supplies and Services related expenditure","07/06/2020","12.68","Director of Adult Services"
"Miscellaneous","Other Direct Marketers","Amazon.Co.Uk","Supplies and Services related expenditure","07/06/2020","5.94","Director of Children's Services and Education"
"Other Supplies","Misc Speciality Retail","Amznmktplace","Premises related expenditure","07/06/2020","12.56","Director of Children's Services and Education"
"Other Supplies","Misc Speciality Retail","Amznmktplace Amazon.Co.Uk","Supplies and Services related expenditure","07/06/2020","48.30","Director of Children's Services and Education"
"Other Supplies","Department Stores","The Range","Supplies and Services related expenditure","07/06/2020","4.60","Director of Housing, Neighbourhood and Building Services"
"Other Supplies","Department Stores","The Range","Supplies and Services related expenditure","07/06/2020","11.94","Director of Housing, Neighbourhood and Building Services"
"Other Supplies","Misc Speciality Retail","Amznmktplace","Supplies and Services related expenditure","07/06/2020","34.95","Director of Corporate Services"
"Type of Retail Store","Misc Food Stores - Default","Spar","Supplies and Services related expenditure","07/06/2020","2.96","Director of Adult Services"
"Other Supplies","Misc Speciality Retail","Amznmktplace","Premises related expenditure","07/06/2020","33.31","Director of Adult Services"
"Other Supplies","Combination Catalog & Retail","Whsmith.Co.Uk","Supplies and Services related expenditure","07/06/2020","7.88","Director of Children's Services and Education"
"Business To Business Eqpt/Furn","Stationery/Office Supplies","Www.Banneruk.Com","Supplies and Services related expenditure","07/06/2020","5.62","Director of Culture, Leisure & Regulatory Services"
"Government Service","Govt Serv - Default","Hampshire County Counc","Supplies and Services related expenditure","07/06/2020","35.33","Director of Children's Services and Education"
"Government Service","Govt Serv - Default","Hampshire County Counc","Supplies and Services related expenditure","07/06/2020","24.53","Director of Children's Services and Education"
"Government Service","Schools - Default","Vue*ncs Citb Hs&e Test","Employees related expenditure","07/06/2020","21.00","Director of Housing, Neighbourhood and Building Services"
"Type of Retail Store","Grocery Stores/Supermarkets","One Stop 1339","Supplies and Services related expenditure","07/06/2020","5.20","Director of Children's Services and Education"
"Business To Business Eqpt/Furn","Stationery/Office Supplies","Www.Banneruk.Com","Supplies and Services related expenditure","07/06/2020","14.40","Director of Finance & Resources"
"Business To Business Eqpt/Furn","Stationery/Office Supplies","Www.Banneruk.Com","Supplies and Services related expenditure","07/06/2020","35.14","Director of Culture, Leisure & Regulatory Services"
"Facilities/Repair Supplies","Automotive Parts Stores","Wiperblades.Co.Uk","Transport related expenditure","07/06/2020","17.51","Director of Children's Services and Education"
"Facilities/Repair Supplies","Home Supply Warehouse Stores","B & Q 1260","Premises related expenditure","07/06/2020","21.85","Director of Adult Services"
"Miscellaneous","Continuity/Subscription Mercht","Zoom.Gbp","Supplies and Services related expenditure","07/06/2020","11.99","Director of Regeneration"
"Type of Retail Store","Grocery Stores/Supermarkets","Tesco Stores 5475","Supplies and Services related expenditure","07/06/2020","14.35","Director of Children's Services and Education"
"Other Supplies","Misc Speciality Retail","Amznmktplace","Supplies and Services related expenditure","07/06/2020","32.50","Director of Children's Services and Education"
"Business Services","Business Services - Default","Www.Phs.Co.Uk","Premises related expenditure","07/06/2020","320.27","Director of Adult Services"
"Equipment And Furniture","Phone Serv/Equip Non-Util","Pmc Electrics Limi","Supplies and Services related expenditure","07/06/2020","-77.90","Director of Housing, Neighbourhood and Building Services"
"Other Supplies","Misc Speciality Retail","Amznmktplace","Supplies and Services related expenditure","07/06/2020","19.16","Director of Culture, Leisure & Regulatory Services"
"Miscellaneous","Other Direct Marketers","Amazon.Co.Uk","Supplies and Services related expenditure","07/06/2020","5.94","Director of Children's Services and Education"
"Other Supplies","Misc Speciality Retail","Amazon.Co.Uk","Supplies and Services related expenditure","07/06/2020","13.65","Director of Children's Services and Education"
"Government Service","Govt Serv - Default","Hampshire County Counc","Supplies and Services related expenditure","07/06/2020","13.38","Director of Children's Services and Education"
"Miscellaneous","Other Direct Marketers","Amazon.Co.Uk","Supplies and Services related expenditure","07/06/2020","29.78","Director of Children's Services and Education"
"Government Service","Schools - Default","National Ed Group Ltd","Supplies and Services related expenditure","07/06/2020","50.00","Director of Children's Services and Education"
"Medical","Lab/Med/Hospital Equipment","Wightman & Parrish Ltd","Supplies and Services related expenditure","07/06/2020","427.72","Director of Housing, Neighbourhood and Building Services"
"Business To Business Facility/","Industrial Supplies - Def","Www.Arco.Co.Uk","Supplies and Services related expenditure","07/01/2020","267.60","Director of Housing, Neighbourhood and Building Services"
"Business To Business Facility/","Industrial Supplies - Def","Www.Arco.Co.Uk","Supplies and Services related expenditure","07/06/2020","94.06","Director of Portsmouth International Port"
"Personal Service Provider","Professional Services - Def","Paypal","Supplies and Services related expenditure","07/06/2020","130.00","Director of Children's Services and Education"
"Business To Business Facility/","Industrial Supplies - Def","Www.Arco.Co.Uk","Supplies and Services related expenditure","07/06/2020","47.45","Director of Housing, Neighbourhood and Building Services"
"Miscellaneous","Fines","Combined Court Cen","Supplies and Services related expenditure","07/07/2020","355.00","Director of Housing, Neighbourhood and Building Services"
"Business To Business Facility/","Industrial Supplies - Def","Www.Arco.Co.Uk","Supplies and Services related expenditure","07/07/2020","94.13","Director of Portsmouth International Port"
"Other Supplies","Variety Stores","Wallgate Limited","Premises related expenditure","07/07/2020","200.23","Director of Housing, Neighbourhood and Building Services"
"Transportation Conveyor","Passenger Railways","Trainline","Transport related expenditure","07/07/2020","66.51","Director of Housing, Neighbourhood and Building Services"
"Freight/Courier/Warehouse Svcs","Public Warehousing","Lok N Store","Premises related expenditure","07/07/2020","52.00","Director of Housing, Neighbourhood and Building Services"
"Freight/Courier/Warehouse Svcs","Public Warehousing","Lok N Store","Premises related expenditure","07/07/2020","253.33","Director of Housing, Neighbourhood and Building Services"
"Transportation Conveyor","Passenger Railways","Trainline","Transport related expenditure","07/07/2020","42.21","Director of Housing, Neighbourhood and Building Services"
"Freight/Courier/Warehouse Svcs","Public Warehousing","Big Yellow S S Portsmout","Premises related expenditure","07/07/2020","69.00","Director of Housing, Neighbourhood and Building Services"
"Freight/Courier/Warehouse Svcs","Public Warehousing","Big Yellow S S Portsmout","Premises related expenditure","07/07/2020","218.00","Director of Housing, Neighbourhood and Building Services"
"Miscellaneous","Other Direct Marketers","Amazon.Co.Uk","Supplies and Services related expenditure","07/07/2020","13.98","Director of Children's Services and Education"
"Auto/Vehicle Expenses","Tire Retread/Repair Shops","Setyres","Transport related expenditure","07/07/2020","32.18","Director of Culture, Leisure & Regulatory Services"
"Government Service","Tax Payments","Dvla Vehicle Tax","Transport related expenditure","07/07/2020","267.50","Director of Culture, Leisure & Regulatory Services"
"Facilities/Repair Supplies","Lawn/Garden Supply/Nursery","Www.Omlet.Co.Uk","Supplies and Services related expenditure","07/07/2020","402.67","Director of Culture, Leisure & Regulatory Services"
"Miscellaneous","Other Direct Marketers","Amazon.Co.Uk","Supplies and Services related expenditure","07/07/2020","29.95","Director of Adult Services"
"Other Supplies","Misc Speciality Retail","Amznmktplace","Supplies and Services related expenditure","07/07/2020","5.83","Director of Children's Services and Education"
"Other Supplies","Department Stores","Southern Co-Op 0247","Supplies and Services related expenditure","07/07/2020","13.00","Director of Adult Services"
"Business To Business Facility/","Industrial Supplies - Def","Www.Arco.Co.Uk","Supplies and Services related expenditure","07/07/2020","49.83","Director of Housing, Neighbourhood and Building Services"
"Other Supplies","Misc Gen Merchandise - Def","Wilko Retail Limited","Supplies and Services related expenditure","07/07/2020","5.00","Director of Children's Services and Education"
"Other Supplies","Misc Gen Merchandise - Def","Wilko Retail Limited","Premises related expenditure","07/07/2020","7.58","Director of Children's Services and Education"
"Miscellaneous","Continuity/Subscription Mercht","Linkedin 5722997564 Lnkd.","Supplies and Services related expenditure","07/07/2020","16.24","Director of Regeneration"
"Business To Business Facility/","Industrial Supplies - Def","Www.Arco.Co.Uk","Supplies and Services related expenditure","07/07/2020","53.78","Director of Housing, Neighbourhood and Building Services"
"Hotels And Motels","Lodging/Hotels/Motels/Resorts","Portsmouth Inns","Supplies and Services related expenditure","07/07/2020","100.00","Director of Children's Services and Education"
"Medical","Hospitals","Royal Berks & Battle Hos","Agency and Third Party Payments related expenditure","07/07/2020","103.00","Director of Public Health"
"Medical","Hospitals","Kings College Hospital N","Agency and Third Party Payments related expenditure","07/07/2020","136.57","Director of Public Health"
"Other Supplies","Discount Stores","Argos Ltd","Supplies and Services related expenditure","07/07/2020","45.83","Director of Children's Services and Education"
"Other Supplies","Catalog Merchant","Www.Nisbets.Com","Supplies and Services related expenditure","07/07/2020","9.38","Director of Adult Services"
"Other Supplies","Misc Speciality Retail","Amznmktplace","Supplies and Services related expenditure","07/07/2020","13.33","Director of Adult Services"
"Business Expenses/Services","Postage Stamps","Post Office Counter","Supplies and Services related expenditure","07/07/2020","2.06","Director of Children's Services and Education"
"Business Expenses/Services","Postage Stamps","Post Office Counter","Supplies and Services related expenditure","07/07/2020","2.06","Director of Children's Services and Education"
"Business Expenses/Services","Postage Stamps","Post Office Counter","Supplies and Services related expenditure","07/07/2020","2.06","Director of Children's Services and Education"
"Type of Retail Store","Grocery Stores/Supermarkets","Tesco Stores 6577","Supplies and Services related expenditure","07/07/2020","40.00","Director of Children's Services and Education"
"Type of Retail Store","Grocery Stores/Supermarkets","Tesco Stores 6577","Supplies and Services related expenditure","07/07/2020","25.00","Director of Children's Services and Education"
"Type of Retail Store","Grocery Stores/Supermarkets","Tesco Stores 6577","Supplies and Services related expenditure","07/07/2020","30.00","Director of Children's Services and Education"
"Auto/Vehicle Expenses","Tire Retread/Repair Shops","Setyres","Transport related expenditure","07/07/2020","56.81","Director of Culture, Leisure & Regulatory Services"
"Business To Business Eqpt/Furn","Stationery/Office Supplies","Www.Banneruk.Com","Supplies and Services related expenditure","07/07/2020","45.68","Director of Housing, Neighbourhood and Building Services"
"Government Service","Govt Serv - Default","Pcc Internet Payment","Supplies and Services related expenditure","07/07/2020","22.00","Director of Children's Services and Education"
"Government Service","Govt Serv - Default","Portsmouth City Co","Supplies and Services related expenditure","07/07/2020","10.00","Director of Children's Services and Education"
"Government Service","Govt Serv - Default","Portsmouth City Co","Transport related expenditure","07/07/2020","63.33","Director of Children's Services and Education"
"Miscellaneous","Other Direct Marketers","Amazon.Co.Uk","Premises related expenditure","07/07/2020","3.33","Director of Children's Services and Education"
"Facilities/Repair Supplies","Home Supply Warehouse Stores","Screwfix Direct","Premises related expenditure","07/07/2020","83.17","Director of Children's Services and Education"
"Miscellaneous","Other Direct Marketers","Amazon.Co.Uk","Supplies and Services related expenditure","07/07/2020","6.26","Director of Children's Services and Education"
"Other Supplies","Misc Speciality Retail","Amznmktplace","Supplies and Services related expenditure","07/07/2020","40.83","Director of Children's Services and Education"
"Other Supplies","Misc Speciality Retail","Amznmktplace","Supplies and Services related expenditure","07/07/2020","19.16","Director of Children's Services and Education"
"Other Supplies","Misc Speciality Retail","Amznmktplace","Supplies and Services related expenditure","07/07/2020","12.90","Director of Culture, Leisure & Regulatory Services"
"Business To Business Eqpt/Furn","Stationery/Office Supplies","Www.Banneruk.Com","Supplies and Services related expenditure","07/07/2020","249.50","Director of Corporate Services"
"Business To Business Eqpt/Furn","Stationery/Office Supplies","Www.Banneruk.Com","Supplies and Services related expenditure","07/07/2020","135.79","Director of Adult Services"
"Business To Business Eqpt/Furn","Stationery/Office Supplies","Www.Banneruk.Com","Supplies and Services related expenditure","07/07/2020","362.33","Director of Adult Services"
"Personal Service Provider","Mgmt/Consult/Public Rel Ser","Cvle / Mplc","Supplies and Services related expenditure","07/07/2020","78.89","Director of Housing, Neighbourhood and Building Services"
"Business Expenses/Services","Postage Stamps","Post Office Counter","Supplies and Services related expenditure","07/07/2020","5.46","Director of Culture, Leisure & Regulatory Services"
"Other Supplies","Discount Stores","Www.Theworks.Co.Uk","Supplies and Services related expenditure","07/07/2020","43.00","Director of Children's Services and Education"
"Other Supplies","Misc Speciality Retail","Amznmktplace","Supplies and Services related expenditure","07/07/2020","148.86","Director of Children's Services and Education"
"Other Supplies","Misc Speciality Retail","Amznmktplace","Supplies and Services related expenditure","07/07/2020","7.00","Director of Children's Services and Education"
"Transportation Conveyor","Passenger Railways","Sw Railway App","Transport related expenditure","07/07/2020","61.50","Director of Children's Services and Education"
"Miscellaneous","Continuity/Subscription Mercht","Zoom.Gbp","Supplies and Services related expenditure","07/07/2020","11.99","Director of Housing, Neighbourhood and Building Services"
"Miscellaneous","Continuity/Subscription Mercht","The Consortium/wms","Supplies and Services related expenditure","07/07/2020","-68.83","Director of Children's Services and Education"
"Type of Retail Store","Grocery Stores/Supermarkets","Wm Morrisons Store","Supplies and Services related expenditure","07/07/2020","81.04","Director of Children's Services and Education"
"Facilities/Repair Supplies","Home Supply Warehouse Stores","B & Q 1309","Premises related expenditure","07/07/2020","83.33","Director of Children's Services and Education"
"Facilities/Repair Supplies","Home Supply Warehouse Stores","B & Q 1260","Premises related expenditure","07/07/2020","-83.33","Director of Children's Services and Education"
"Facilities/Repair Supplies","Hardware Stores","Www.Toolstation.Com","Premises related expenditure","07/07/2020","96.23","Director of Children's Services and Education"
"Other Supplies","Misc Speciality Retail","Amznmktplace Amazon.Co.Uk","Supplies and Services related expenditure","07/07/2020","12.08","Director of Culture, Leisure & Regulatory Services"
"Other Supplies","Misc Speciality Retail","Amznmktplace Amazon.Co.Uk","Supplies and Services related expenditure","07/07/2020","108.75","Director of Culture, Leisure & Regulatory Services"
"Facilities/Repair Services","Gen Contractors Residentl/Coml","Broxap Ltd","Capital related expenditure","07/07/2020","2,806.00","Capital - Culture, Leisure and Economic Development"
"Other Supplies","Misc Speciality Retail","Amznmktplace","Supplies and Services related expenditure","07/07/2020","135.94","Director of Children's Services and Education"
"Other Supplies","Misc Speciality Retail","Amznmktplace","Premises related expenditure","07/07/2020","33.33","Director of Children's Services and Education"
"Other Supplies","Misc Speciality Retail","Amznmktplace","Supplies and Services related expenditure","07/07/2020","157.39","Director of Children's Services and Education"
"Government Service","Govt Serv - Default","Disclosure And Barring","Employees related expenditure","07/07/2020","19.17","Director of Housing, Neighbourhood and Building Services"
"Automobile Services & Supplies","Service Stations","Tesco Pfs 2339","Supplies and Services related expenditure","07/07/2020","7.80","Director of Housing, Neighbourhood and Building Services"
"Miscellaneous","Continuity/Subscription Mercht","Zoom.Gbp","Supplies and Services related expenditure","07/07/2020","14.39","Director of Corporate Services"
"Miscellaneous","Continuity/Subscription Mercht","Zoom.Gbp","Supplies and Services related expenditure","07/07/2020","11.99","Chief Exec"
"Caterers Food","Caterers","Booker Limited Portsmouth","Supplies and Services related expenditure","07/07/2020","45.97","Director of Children's Services and Education"
"Facilities/Repair Supplies","Home Supply Warehouse Stores","B & Q 1260","Premises related expenditure","07/07/2020","28.31","Director of Adult Services"
"Government Service","Govt Serv - Default","Hampshire County Counc","Supplies and Services related expenditure","07/07/2020","18.18","Director of Children's Services and Education"
"Business Expenses/Services","Florists","Blooms & Balloons","Supplies and Services related expenditure","07/07/2020","41.67","Director of Children's Services and Education"
"Miscellaneous","Other Direct Marketers","Amazon.Co.Uk","Supplies and Services related expenditure","07/07/2020","136.88","Director of Children's Services and Education"
"Facilities/Repair Supplies","Hardware Stores","Home Bargains","Supplies and Services related expenditure","07/07/2020","4.08","Director of Children's Services and Education"
"Type of Retail Store","Sporting Goods Stores","Decathlon Portsmouth","Supplies and Services related expenditure","07/07/2020","9.15","Director of Children's Services and Education"
"Business To Business Eqpt/Furn","Stationery/Office Supplies","Www.Banneruk.Com","Supplies and Services related expenditure","07/07/2020","26.97","Director of Adult Services"
"Facilities/Repair Supplies","Home Supply Warehouse Stores","B & Q 1260","Premises related expenditure","07/07/2020","58.47","Director of Children's Services and Education"
"Business To Business Facility/","Industrial Supplies - Def","Www.Arco.Co.Uk","Supplies and Services related expenditure","07/07/2020","74.34","Director of Housing, Neighbourhood and Building Services"
"Facilities/Repair Supplies","Lawn/Garden Supply/Nursery","Carters Of Swanwic","Supplies and Services related expenditure","07/07/2020","84.68","Director of Housing, Neighbourhood and Building Services"
"Type of Retail Store","Grocery Stores/Supermarkets","Tesco Stores 4579","Supplies and Services related expenditure","07/07/2020","7.08","Director of Children's Services and Education"
"Type of Retail Store","Grocery Stores/Supermarkets","Tesco Stores 4579","Supplies and Services related expenditure","07/07/2020","29.63","Director of Children's Services and Education"
"Transportation Conveyor","Taxicabs/Limousines","Uber *trip","Transport related expenditure","07/07/2020","3.00","Director of Children's Services and Education"
"Transportation Conveyor","Taxicabs/Limousines","Uber Trip Help.Uber.Com","Transport related expenditure","07/07/2020","3.00","Director of Children's Services and Education"
"Transportation Conveyor","Passenger Railways","Swrailway Tck Off","Transport related expenditure","07/07/2020","8.95","Director of Children's Services and Education"
"Government Service","Govt Serv - Default","Pcc Internet Payment","Supplies and Services related expenditure","07/07/2020","11.00","Director of Children's Services and Education"
"Transportation Conveyor","Passenger Railways","Swrailway Tck Off","Transport related expenditure","07/07/2020","17.10","Director of Children's Services and Education"
"Transportation Conveyor","Passenger Railways","Swrailway Tck Off","Transport related expenditure","07/07/2020","17.90","Director of Children's Services and Education"
"Personal Service Provider","Professional Services - Def","Pp*5140code","Supplies and Services related expenditure","07/07/2020","-1.00","Director of Children's Services and Education"
"Other Supplies","Department Stores","Southern Co-Op 0247","Supplies and Services related expenditure","07/07/2020","2.23","Director of Children's Services and Education"
"Type of Retail Store","Grocery Stores/Supermarkets","Co-Op Group Food","Supplies and Services related expenditure","07/07/2020","5.67","Director of Children's Services and Education"
"Business Expenses/Services","Florists","Bunches","Supplies and Services related expenditure","07/07/2020","14.67","Director of Children's Services and Education"
"Business Expenses/Services","Florists","Bunches","Supplies and Services related expenditure","07/07/2020","16.13","Director of Children's Services and Education"
"Business To Business Eqpt/Furn","Stationery/Office Supplies","Www.Banneruk.Com","Supplies and Services related expenditure","07/07/2020","15.99","Director of Children's Services and Education"
"Other Supplies","Department Stores","Southern Co-Op 0008","Supplies and Services related expenditure","07/07/2020","3.92","Director of Children's Services and Education"
"Utility","Phone Serv/Equip Utility","Pageone","Supplies and Services related expenditure","07/02/2020","31.14","Director of Culture, Leisure & Regulatory Services"
"Business To Business Facility/","Electrical Parts/Equipment","Premier Farnell","Supplies and Services related expenditure","07/07/2020","87.92","Director of Regeneration"
"Facilities/Repair Supplies","Bicycle Shops/Sales/Service","Portsmouth Cycle Excha","Supplies and Services related expenditure","07/07/2020","133.33","Director of Children's Services and Education"
"Business Expenses/Services","Stationery Stores","Www.Blackwell.Co.Uk","Supplies and Services related expenditure","07/07/2020","7.89","Director of Children's Services and Education"
"Business To Business Facility/","Electrical Parts/Equipment","Rs Components","Supplies and Services related expenditure","07/07/2020","269.18","Director of Regeneration"
"Other Supplies","Catalog Merchant","Www.Uk.Insight.Com","Supplies and Services related expenditure","07/07/2020","91.58","Director of Housing, Neighbourhood and Building Services"
"Business Expenses/Services","Postage Stamps","Post Office Counter","Supplies and Services related expenditure","07/08/2020","2.06","Director of Portsmouth International Port"
"Personal Service Provider","Computer Program/Sys Design","Sq *a1 Print Services Ltd","Premises related expenditure","07/08/2020","363.92","Director of Housing, Neighbourhood and Building Services"
"Type of Retail Store","Grocery Stores/Supermarkets","Tesco Stores 4579","Supplies and Services related expenditure","07/08/2020","2.47","Director of Adult Services"
"Medical","Lab/Med/Hospital Equipment","Wightman & Parrish","Premises related expenditure","07/08/2020","14.34","Director of Housing, Neighbourhood and Building Services"
"Medical","Lab/Med/Hospital Equipment","Wightman & Parrish","Supplies and Services related expenditure","07/08/2020","253.30","Director of Housing, Neighbourhood and Building Services"
"Medical","Lab/Med/Hospital Equipment","Wightman & Parrish","Premises related expenditure","07/08/2020","361.60","Director of Housing, Neighbourhood and Building Services"
"Medical","Lab/Med/Hospital Equipment","Wightman & Parrish","Premises related expenditure","07/08/2020","1,403.67","Director of Housing, Neighbourhood and Building Services"
"Personal Service Provider","Computer Program/Sys Design","Sq *a1 Print Services Ltd","Supplies and Services related expenditure","07/08/2020","198.50","Director of Housing, Neighbourhood and Building Services"
"Business To Business Facility/","Construction Materials - Def","Aggregate","Supplies and Services related expenditure","07/08/2020","52.42","Director of Culture, Leisure & Regulatory Services"
"Facilities/Repair Supplies","Lawn/Garden Supply/Nursery","Wwwtudorenvironmentalcou","Supplies and Services related expenditure","07/08/2020","253.53","Director of Culture, Leisure & Regulatory Services"
"Miscellaneous","Other Direct Marketers","Amazon.Co.Uk","Supplies and Services related expenditure","07/08/2020","34.55","Director of Adult Services"
"Other Supplies","Misc Speciality Retail","Amznmktplace","Supplies and Services related expenditure","07/08/2020","39.56","Director of Children's Services and Education"
"Facilities/Repair Supplies","Home Supply Warehouse Stores","Screwfix Direct","Premises related expenditure","07/08/2020","8.33","Director of Children's Services and Education"
"Facilities/Repair Supplies","Home Supply Warehouse Stores","B&q Direct","Premises related expenditure","07/08/2020","52.50","Director of Children's Services and Education"
"Type of Retail Store","Grocery Stores/Supermarkets","Lidl Gb Portchester","Premises related expenditure","07/08/2020","11.18","Director of Adult Services"
"Medical","Lab/Med/Hospital Equipment","Wightman & Parrish","Premises related expenditure","07/08/2020","50.02","Director of Housing, Neighbourhood and Building Services"
"Medical","Lab/Med/Hospital Equipment","Wightman & Parrish","Premises related expenditure","07/08/2020","432.49","Director of Housing, Neighbourhood and Building Services"
"Type of Retail Store","Grocery Stores/Supermarkets","Waitrose 152","Agency and Third Party Payments related expenditure","07/08/2020","3.30","Director of Children's Services and Education"
"Type of Retail Store","Grocery Stores/Supermarkets","Waitrose 152","Agency and Third Party Payments related expenditure","07/08/2020","0.75","Director of Children's Services and Education"
"Other Supplies","Department Stores","The Range","Supplies and Services related expenditure","07/08/2020","16.65","Director of Children's Services and Education"
"Other Supplies","Department Stores","The Range","Supplies and Services related expenditure","07/08/2020","9.17","Director of Children's Services and Education"
"Facilities/Repair Supplies","Hardware Stores","Home Bargains","Supplies and Services related expenditure","07/08/2020","4.95","Director of Children's Services and Education"
"Facilities/Repair Supplies","Hardware Stores","Home Bargains","Supplies and Services related expenditure","07/08/2020","5.13","Director of Children's Services and Education"
"Facilities/Repair Supplies","Hardware Stores","Home Bargains","Supplies and Services related expenditure","07/08/2020","19.81","Director of Children's Services and Education"
"Utility","Utilities/Elec/Gas/H2O/Sani","Castle Water","Premises related expenditure","07/08/2020","30.63","Director of Portsmouth International Port"
"Transportation Conveyor","Taxicabs/Limousines","Aqua Cars","Transport related expenditure","07/08/2020","181.30","Director of Portsmouth International Port"
"Caterers Food","Caterers","Angel Springs Ltd","Supplies and Services related expenditure","07/08/2020","182.35","Director of Portsmouth International Port"
"Caterers Food","Caterers","Angel Springs Ltd","Supplies and Services related expenditure","07/08/2020","56.88","Director of Portsmouth International Port"
"Caterers Food","Caterers","Angel Springs Ltd","Supplies and Services related expenditure","07/08/2020","83.70","Director of Portsmouth International Port"
"Other Supplies","Misc Speciality Retail","Amazon.Co.Uk","Supplies and Services related expenditure","07/08/2020","96.23","Director of Culture, Leisure & Regulatory Services"
"Business To Business Facility/","Construction Materials - Def","Aggregate","Supplies and Services related expenditure","07/08/2020","91.30","Director of Culture, Leisure & Regulatory Services"
"Business To Business Facility/","Industrial Supplies - Def","Www.Arco.Co.Uk","Supplies and Services related expenditure","07/08/2020","154.56","Director of Housing, Neighbourhood and Building Services"
"Type of Retail Store","Grocery Stores/Supermarkets","Wm Morrisons Store","Supplies and Services related expenditure","07/08/2020","6.38","Director of Children's Services and Education"
"Type of Retail Store","Grocery Stores/Supermarkets","Wm Morrisons Store","Supplies and Services related expenditure","07/08/2020","10.00","Director of Children's Services and Education"
"Other Supplies","Discount Stores","Argos Ltd","Supplies and Services related expenditure","07/08/2020","149.99","Director of Children's Services and Education"
"Auto/Vehicle Expenses","Automated Fuel Dispensers","Tesco Pay At Pump 4274","Supplies and Services related expenditure","07/08/2020","47.12","Director of Housing, Neighbourhood and Building Services"
"Medical","Lab/Med/Hospital Equipment","Wightman & Parrish","Premises related expenditure","07/08/2020","129.30","Director of Housing, Neighbourhood and Building Services"
"Facilities/Repair Supplies","Bicycle Shops/Sales/Service","Halfords On Line","Supplies and Services related expenditure","07/08/2020","-10.00","Director of Children's Services and Education"
"Facilities/Repair Supplies","Bicycle Shops/Sales/Service","Halfords On Line","Supplies and Services related expenditure","07/08/2020","16.67","Director of Children's Services and Education"
"Medical","Lab/Med/Hospital Equipment","Wightman & Parrish Ltd","Supplies and Services related expenditure","07/08/2020","75.11","Director of Adult Services"
"Medical","Lab/Med/Hospital Equipment","Wightman & Parrish Ltd","Supplies and Services related expenditure","07/08/2020","34.00","Director of Adult Services"
"Medical","Lab/Med/Hospital Equipment","Wightman & Parrish Ltd","Premises related expenditure","07/08/2020","111.10","Director of Adult Services"
"Facilities/Repair Supplies","Glass/Paint/Wallpaper Store","Johnstones Dec Centre","Supplies and Services related expenditure","07/08/2020","31.99","Director of Housing, Neighbourhood and Building Services"
"Medical","Lab/Med/Hospital Equipment","Wightman & Parrish","Premises related expenditure","07/08/2020","102.91","Director of Housing, Neighbourhood and Building Services"
"Business To Business Facility/","Electrical Parts/Equipment","Edmundson Electrical","Premises related expenditure","07/08/2020","43.59","Director of Portsmouth International Port"
"Business To Business Facility/","Electrical Parts/Equipment","Edmundson Electrical","Premises related expenditure","07/08/2020","65.12","Director of Portsmouth International Port"
"Business To Business Facility/","Electrical Parts/Equipment","Edmundson Electrical","Premises related expenditure","07/08/2020","185.88","Director of Portsmouth International Port"
"Business To Business Facility/","Industrial Supplies - Def","Cromwell (Head Office)","Premises related expenditure","07/08/2020","427.38","Director of Portsmouth International Port"
"Other Supplies","Misc Speciality Retail","Amznmktplace","Premises related expenditure","07/08/2020","12.01","Director of Children's Services and Education"
"Other Supplies","Misc Speciality Retail","Amznmktplace","Premises related expenditure","07/08/2020","11.65","Director of Children's Services and Education"
"Other Supplies","Misc Speciality Retail","Amznmktplace","Supplies and Services related expenditure","07/08/2020","13.32","Director of Children's Services and Education"
"Other Supplies","Misc Speciality Retail","Amznmktplace","Supplies and Services related expenditure","07/08/2020","5.83","Director of Children's Services and Education"
"Other Supplies","Misc Speciality Retail","Amznmktplace","Supplies and Services related expenditure","07/08/2020","50.43","Director of Children's Services and Education"
"Type of Retail Store","Grocery Stores/Supermarkets","Tesco Store 3048","Supplies and Services related expenditure","07/08/2020","40.00","Director of Children's Services and Education"
"Type of Retail Store","Grocery Stores/Supermarkets","Tesco Store 3048","Supplies and Services related expenditure","07/08/2020","25.00","Director of Children's Services and Education"
"Type of Retail Store","Grocery Stores/Supermarkets","Tesco Store 3048","Supplies and Services related expenditure","07/08/2020","30.00","Director of Children's Services and Education"
"Miscellaneous","Member Organizations - Def","Ppl Prs Ltd","Agency and Third Party Payments related expenditure","07/08/2020","303.75","Director of Portsmouth International Port"
"Personal Service Provider","Mgmt/Consult/Public Rel Ser","Gully-Howard-Technical","Employees related expenditure","07/08/2020","235.00","Director of Housing, Neighbourhood and Building Services"
"Personal Service Provider","Mgmt/Consult/Public Rel Ser","Gully-Howard-Technical","Employees related expenditure","07/08/2020","235.00","Director of Housing, Neighbourhood and Building Services"
"Facilities/Repair Supplies","Lumber/Build. Supply Stores","City Electrical Fa","Premises related expenditure","07/08/2020","131.17","Director of Housing, Neighbourhood and Building Services"
"Other Supplies","Discount Stores","Argos Ltd","Supplies and Services related expenditure","07/08/2020","152.95","Director of Children's Services and Education"
"Other Supplies","Discount Stores","Argos Ltd","Supplies and Services related expenditure","07/08/2020","175.95","Director of Children's Services and Education"
"Caterers Food","Caterers","Booker Limited Portsmouth","Supplies and Services related expenditure","07/08/2020","65.71","Director of Housing, Neighbourhood and Building Services"
"Caterers Food","Caterers","Booker Limited Portsmouth","Supplies and Services related expenditure","07/08/2020","2.99","Director of Housing, Neighbourhood and Building Services"
"Business Services","Business Services - Default","Fast Key Services Limi","Supplies and Services related expenditure","07/08/2020","11.08","Director of Children's Services and Education"
"Business Services","Business Services - Default","Fast Key Services Limi","Supplies and Services related expenditure","07/08/2020","0.94","Director of Children's Services and Education"
"Type of Retail Store","Grocery Stores/Supermarkets","Tesco Store 3048","Agency and Third Party Payments related expenditure","07/08/2020","20.00","Director of Children's Services and Education"
"Government Service","Govt Serv - Default","Portsmouth City Co","Transport related expenditure","07/08/2020","63.33","Director of Children's Services and Education"
"Facilities/Repair Supplies","Home Supply Warehouse Stores","Screwfix Direct","Supplies and Services related expenditure","07/08/2020","48.21","Director of Housing, Neighbourhood and Building Services"
"Miscellaneous","Charitable/Soc Service Orgs","Hamilton Education","Supplies and Services related expenditure","07/08/2020","135.00","Director of Children's Services and Education"
"Other Supplies","Misc Speciality Retail","Amznmktplace","Supplies and Services related expenditure","07/08/2020","21.88","Director of Children's Services and Education"
"Business To Business Eqpt/Furn","Stationery/Office Supplies","Www.Banneruk.Com","Supplies and Services related expenditure","07/08/2020","39.05","Director of Culture, Leisure & Regulatory Services"
"Automobile Rental","Automobile Rental Agency","Southern Motor Contrac","Transport related expenditure","07/08/2020","1,653.53","Director of Regeneration"
"Automobile Rental","Automobile Rental Agency","Southern Motor Contrac","Transport related expenditure","07/08/2020","4,681.40","Director of Regeneration"
"Business To Business Facility/","Industrial Supplies - Def","Www.Arco.Co.Uk","Supplies and Services related expenditure","07/08/2020","7.50","Director of Housing, Neighbourhood and Building Services"
"Facilities/Repair Supplies","Home Supply Warehouse Stores","B & Q 1260","Supplies and Services related expenditure","07/08/2020","12.66","Director of Housing, Neighbourhood and Building Services"
"Medical","Lab/Med/Hospital Equipment","Wightman & Parrish","Premises related expenditure","07/08/2020","117.13","Director of Housing, Neighbourhood and Building Services"
"Business Services","Business Services - Default","Www.Planningportal.Co.","Premises related expenditure","07/08/2020","192.50","Director of Housing, Neighbourhood and Building Services"
"Type of Retail Store","Grocery Stores/Supermarkets","Gillett London Road","Supplies and Services related expenditure","07/08/2020","7.87","Director of Adult Services"
"Other Supplies","Misc Speciality Retail","Amznmktplace","Supplies and Services related expenditure","07/08/2020","8.67","Director of Adult Services"
"Facilities/Repair Supplies","Lawn/Garden Supply/Nursery","Carters Of Swanwic","Supplies and Services related expenditure","07/08/2020","38.70","Director of Housing, Neighbourhood and Building Services"
"Medical","Lab/Med/Hospital Equipment","Wightman & Parrish","Premises related expenditure","07/08/2020","47.88","Director of Housing, Neighbourhood and Building Services"
"Facilities/Repair Supplies","Lawn/Garden Supply/Nursery","Carters Of Swanwic","Supplies and Services related expenditure","07/08/2020","112.36","Director of Housing, Neighbourhood and Building Services"
"Medical","Lab/Med/Hospital Equipment","Wightman & Parrish","Premises related expenditure","07/08/2020","312.57","Director of Housing, Neighbourhood and Building Services"
"Transportation Conveyor","Passenger Railways","Trainline","Transport related expenditure","07/08/2020","275.51","Director of Children's Services and Education"
"Automobile Services & Supplies","Service Stations","Shell Farlignton","Transport related expenditure","07/08/2020","56.01","Director of Regeneration"
"Facilities Maintenance","Clean/Maint/Janitoral Serv","Cjs Portsmouth Limited","Premises related expenditure","07/08/2020","18.99","Director of Housing, Neighbourhood and Building Services"
"Government Service","Govt Serv - Default","Land Registry","Supplies and Services related expenditure","07/08/2020","3.00","Director of Housing, Neighbourhood and Building Services"
"Government Service","Govt Serv - Default","Land Registry","Supplies and Services related expenditure","07/08/2020","3.00","Director of Housing, Neighbourhood and Building Services"
"Miscellaneous","Other Direct Marketers","Amazon.Co.Uk","Supplies and Services related expenditure","07/08/2020","56.37","Director of Children's Services and Education"
"Facilities/Repair Services","Spec Contractors - Default","Www.Southwestsupplies.Co","Premises related expenditure","07/08/2020","402.50","Director of Children's Services and Education"
"Other Supplies","Misc Speciality Retail","Amznmktplace","Supplies and Services related expenditure","07/08/2020","9.16","Director of Children's Services and Education"
"Other Supplies","Misc Speciality Retail","Amznmktplace","Supplies and Services related expenditure","07/08/2020","24.99","Director of Children's Services and Education"
"Business Expenses/Services","Stationery Stores","Www.Tts-Groups.Co.Uk","Supplies and Services related expenditure","07/08/2020","48.96","Director of Children's Services and Education"
"Business To Business Eqpt/Furn","Stationery/Office Supplies","Www.Banneruk.Com","Supplies and Services related expenditure","07/08/2020","81.70","Director of Children's Services and Education"
"Business Expenses/Services","Postage Stamps","The Post Office","Supplies and Services related expenditure","07/08/2020","91.50","Director of Housing, Neighbourhood and Building Services"
"Other Supplies","Misc Speciality Retail","Amznmktplace","Supplies and Services related expenditure","07/08/2020","30.53","Director of Children's Services and Education"
"Business To Business Services","Misc Publishing & Printing","Www Building Co UK Subsc","Supplies and Services related expenditure","07/08/2020","193.33","Director of Regeneration"
"Business Expenses/Services","Stationery Stores","Www.Blackwell.Co.Uk","Supplies and Services related expenditure","07/08/2020","7.89","Director of Children's Services and Education"
"Business To Business Other Sup","Uniforms & Commercial Clothing","Www.Uksafetyfootwear.C","Supplies and Services related expenditure","07/08/2020","65.35","Director of Children's Services and Education"
"Other Supplies","Misc Gen Merchandise - Def","Toughook","Premises related expenditure","07/08/2020","94.13","Director of Children's Services and Education"
"Business To Business Facility/","Industrial Supplies - Def","Www.Plastock.Co.Uk","Supplies and Services related expenditure","07/08/2020","205.80","Director of Children's Services and Education"
"Other Supplies","Misc Speciality Retail","Amazon.Co.Uk","Supplies and Services related expenditure","07/08/2020","309.94","Director of Children's Services and Education"
"Transportation Conveyor","Parking Lots, Meters, Garages","Queen Alexandra Hopita","Transport related expenditure","07/08/2020","8.20","Director of Adult Services"
"Facilities/Repair Supplies","Lumber/Build. Supply Stores","C Brewer & Sons","Premises related expenditure","07/08/2020","179.96","Director of Children's Services and Education"
"Facilities/Repair Supplies","Lumber/Build. Supply Stores","C Brewer & Sons","Supplies and Services related expenditure","07/08/2020","191.80","Director of Children's Services and Education"
"Type of Retail Store","Grocery Stores/Supermarkets","Tesco Stores 4579","Supplies and Services related expenditure","07/08/2020","0.83","Director of Children's Services and Education"
"Type of Retail Store","Grocery Stores/Supermarkets","Tesco Stores 4579","Supplies and Services related expenditure","07/08/2020","39.40","Director of Children's Services and Education"
"Type of Retail Store","Grocery Stores/Supermarkets","Tesco Stores 4579","Supplies and Services related expenditure","07/08/2020","2.50","Director of Children's Services and Education"
"Caterers Food","Caterers","Booker Limited Portsmouth","Premises related expenditure","07/08/2020","51.46","Director of Children's Services and Education"
"Medical","Lab/Med/Hospital Equipment","Wightman & Parrish","Premises related expenditure","07/08/2020","69.74","Director of Housing, Neighbourhood and Building Services"
"Eating And Drinking Places","Fast Food Restaurants","McDonalds","Agency and Third Party Payments related expenditure","07/08/2020","3.93","Director of Children's Services and Education"
"Other Supplies","Department Stores","Southern Co-Op 0014","Agency and Third Party Payments related expenditure","07/08/2020","20.00","Director of Children's Services and Education"
"Business To Business Facility/","Industrial Supplies - Def","Www.Arco.Co.Uk","Supplies and Services related expenditure","07/02/2020","30.12","Director of Housing, Neighbourhood and Building Services"
"Business To Business Facility/","Industrial Supplies - Def","Www.Arco.Co.Uk","Supplies and Services related expenditure","07/02/2020","22.16","Director of Housing, Neighbourhood and Building Services"
"Other Supplies","Misc Speciality Retail","Psd Fraud Temp. Credit","Supplies and Services related expenditure","07/05/2020","-134.25","Director of Children's Services and Education"
"Business To Business Facility/","Industrial Supplies - Def","Www.Arco.Co.Uk","Supplies and Services related expenditure","07/08/2020","39.68","Director of Housing, Neighbourhood and Building Services"
"Other Supplies","Misc Speciality Retail","Amazon.Co.Uk","Supplies and Services related expenditure","07/08/2020","11.52","Director of Adult Services"
"Other Supplies","Misc Speciality Retail","Amazon.Co.Uk","Supplies and Services related expenditure","07/08/2020","11.65","Director of Adult Services"
"Business To Business Facility/","Industrial Supplies - Def","Www.Arco.Co.Uk","Supplies and Services related expenditure","07/08/2020","65.65","Director of Housing, Neighbourhood and Building Services"
"Business To Business Facility/","Industrial Supplies - Def","Www.Arco.Co.Uk","Supplies and Services related expenditure","07/08/2020","20.57","Director of Housing, Neighbourhood and Building Services"
"Other Supplies","Combination Catalog & Retail","Whsmith.Co.Uk","Supplies and Services related expenditure","07/08/2020","67.50","Director of Children's Services and Education"
"Business Services","Business Services - Default","Safe Industrial","Supplies and Services related expenditure","07/09/2020","176.20","Director of Portsmouth International Port"
"Facilities/Repair Supplies","Lumber/Build. Supply Stores","Www.Credit.Trade.C","Premises related expenditure","07/09/2020","86.32","Director of Children's Services and Education"
"Other Supplies","Misc Speciality Retail","Amznmktplace Amazon.Co.Uk","Supplies and Services related expenditure","07/09/2020","9.96","Director of Children's Services and Education"
"Other Supplies","Department Stores","Southern Co-Op 0002","Supplies and Services related expenditure","07/09/2020","1.83","Director of Children's Services and Education"
"Other Supplies","Department Stores","Southern Co-Op 0002","Supplies and Services related expenditure","07/09/2020","29.42","Director of Children's Services and Education"
"Type of Retail Store","Grocery Stores/Supermarkets","Sainsburys S/mkts","Supplies and Services related expenditure","07/09/2020","7.55","Director of Culture, Leisure & Regulatory Services"
"Miscellaneous","Civic/Social/Fraternal Assc","Www.Elaweb.Org.Uk","Employees related expenditure","07/09/2020","75.00","Chief Exec"
"Other Supplies","Misc Gen Merchandise - Def","Wilko Retail Limited","Supplies and Services related expenditure","07/09/2020","17.50","Director of Adult Services"
"Medical","Lab/Med/Hospital Equipment","Wightman & Parrish","Premises related expenditure","07/09/2020","304.50","Director of Housing, Neighbourhood and Building Services"
"Medical","Lab/Med/Hospital Equipment","Wightman & Parrish","Premises related expenditure","07/09/2020","460.92","Director of Housing, Neighbourhood and Building Services"
"Automobile Services & Supplies","Service Stations","Shell Fratton 178","Premises related expenditure","07/09/2020","67.44","Director of Regeneration"
"Type of Retail Store","Grocery Stores/Supermarkets","Lidl Gb Portsmouth","Supplies and Services related expenditure","07/09/2020","10.98","Director of Children's Services and Education"
"Facilities/Repair Supplies","Home Supply Warehouse Stores","B & Q 1260","Premises related expenditure","07/09/2020","53.60","Director of Children's Services and Education"
"Other Supplies","Department Stores","Southern Co-Op 0008","Supplies and Services related expenditure","07/09/2020","6.63","Director of Children's Services and Education"
"Other Supplies","Department Stores","Southern Co-Op 0008","Supplies and Services related expenditure","07/09/2020","2.17","Director of Children's Services and Education"
"Type of Retail Store","Grocery Stores/Supermarkets","Wm Morrisons Store","Supplies and Services related expenditure","07/09/2020","38.33","Director of Children's Services and Education"
"Type of Retail Store","Grocery Stores/Supermarkets","Wm Morrisons Store","Supplies and Services related expenditure","07/09/2020","39.78","Director of Children's Services and Education"
"Business To Business Services","Misc Publishing & Printing","Creative Solutions","Supplies and Services related expenditure","07/09/2020","112.45","Director of Children's Services and Education"
"Miscellaneous","Member Organizations - Def","Music Mark","Supplies and Services related expenditure","07/09/2020","150.00","Director of Children's Services and Education"
"Facilities/Repair Supplies","Lumber/Build. Supply Stores","C Brewer & Sons","Premises related expenditure","07/09/2020","35.80","Director of Housing, Neighbourhood and Building Services"
"Hotels And Motels","Lodging/Hotels/Motels/Resorts","Portsmouth Inns","Supplies and Services related expenditure","07/09/2020","100.00","Director of Children's Services and Education"
"Type of Retail Store","Grocery Stores/Supermarkets","Asda Stores","Supplies and Services related expenditure","07/09/2020","10.00","Director of Housing, Neighbourhood and Building Services"
"Type of Retail Store","Grocery Stores/Supermarkets","Asda Stores","Supplies and Services related expenditure","07/09/2020","14.19","Director of Housing, Neighbourhood and Building Services"
"Business To Business Eqpt/Furn","Stationery/Office Supplies","Www.Banneruk.Com","Supplies and Services related expenditure","07/09/2020","52.30","Director of Housing, Neighbourhood and Building Services"
"Medical","Hospitals","Qmc Cashiers General O","Agency and Third Party Payments related expenditure","07/09/2020","189.33","Director of Public Health"
"Facilities/Repair Supplies","Bicycle Shops/Sales/Service","Portsmouth Cycle Excha","Supplies and Services related expenditure","07/09/2020","12.50","Director of Children's Services and Education"
"Medical","Lab/Med/Hospital Equipment","Wightman & Parrish Ltd","Premises related expenditure","07/09/2020","185.75","Director of Housing, Neighbourhood and Building Services"
"Other Supplies","Catalog Merchant","Www.Nisbets.Com","Supplies and Services related expenditure","07/09/2020","119.88","Director of Regeneration"
"Other Supplies","Misc Speciality Retail","Amznmktplace","Premises related expenditure","07/09/2020","4.99","Director of Children's Services and Education"
"Other Supplies","Misc Speciality Retail","Amznmktplace","Premises related expenditure","07/09/2020","27.15","Director of Children's Services and Education"
"Type of Retail Store","Grocery Stores/Supermarkets","Tesco Stores 6002","Supplies and Services related expenditure","07/09/2020","4.78","Director of Children's Services and Education"
"Type of Retail Store","Grocery Stores/Supermarkets","Tesco Stores 6002","Supplies and Services related expenditure","07/09/2020","110.53","Director of Children's Services and Education"
"Type of Retail Store","Grocery Stores/Supermarkets","Fruit Basket Ltd","Supplies and Services related expenditure","07/09/2020","75.88","Director of Culture, Leisure & Regulatory Services"
"Government Service","Govt Serv - Default","Dvla Driver Online","Supplies and Services related expenditure","07/09/2020","34.00","Director of Children's Services and Education"
"Other Supplies","Misc Gen Merchandise - Def","Wilko Retail Limited","Supplies and Services related expenditure","07/09/2020","177.08","Director of Children's Services and Education"
"Government Service","Schools - Default","Vue*ncs Citb Hs&e Test","Supplies and Services related expenditure","07/09/2020","17.50","Director of Housing, Neighbourhood and Building Services"
"Other Supplies","Misc Speciality Retail","Amznmktplace","Supplies and Services related expenditure","07/09/2020","2.41","Director of Children's Services and Education"
"Other Supplies","Misc Speciality Retail","Amznmktplace","Supplies and Services related expenditure","07/09/2020","11.99","Director of Children's Services and Education"
"Other Supplies","Misc Speciality Retail","Amznmktplace","Supplies and Services related expenditure","07/09/2020","10.83","Director of Children's Services and Education"
"Other Supplies","Misc Speciality Retail","Amznmktplace","Supplies and Services related expenditure","07/09/2020","10.83","Director of Children's Services and Education"
"Personal Service Provider","Computer Program/Sys Design","Albelli Bonusprint","Supplies and Services related expenditure","07/09/2020","52.66","Director of Children's Services and Education"
"Other Supplies","Misc Speciality Retail","Amazon.Co.Uk","Supplies and Services related expenditure","07/09/2020","11.52","Director of Children's Services and Education"
"Type of Retail Store","Grocery Stores/Supermarkets","Sainsburys S/mkts","Premises related expenditure","07/09/2020","41.67","Director of Housing, Neighbourhood and Building Services"
"Other Supplies","Misc Speciality Retail","Amznmktplace","Premises related expenditure","07/09/2020","13.12","Director of Adult Services"
"Business Expenses/Services","Stationery Stores","Staples.Co.Uk","Supplies and Services related expenditure","07/09/2020","61.57","Director of Culture, Leisure & Regulatory Services"
"Business To Business Eqpt/Furn","Stationery/Office Supplies","Www.Banneruk.Com","Supplies and Services related expenditure","07/09/2020","487.94","Director of Culture, Leisure & Regulatory Services"
"Business To Business Eqpt/Furn","Stationery/Office Supplies","Www.Banneruk.Com","Supplies and Services related expenditure","07/09/2020","277.56","Director of Housing, Neighbourhood and Building Services"
"Type of Retail Store","Sports/Riding Apparel Store","Www.Trespass.Co.Uk","Supplies and Services related expenditure","07/09/2020","23.37","Director of Housing, Neighbourhood and Building Services"
"Business To Business Facility/","Hardware Equipment/Supplies","Selco Trade Centres Ltd","Premises related expenditure","07/09/2020","74.53","Director of Children's Services and Education"
"Medical","Lab/Med/Hospital Equipment","Wightman & Parrish Ltd","Premises related expenditure","07/09/2020","117.68","Director of Adult Services"
"Medical","Lab/Med/Hospital Equipment","Wightman & Parrish Ltd","Supplies and Services related expenditure","07/09/2020","13.28","Director of Adult Services"
"Medical","Lab/Med/Hospital Equipment","Wightman & Parrish Ltd","Supplies and Services related expenditure","07/09/2020","95.18","Director of Adult Services"
"Type of Retail Store","Grocery Stores/Supermarkets","One Stop 1339","Supplies and Services related expenditure","07/09/2020","2.40","Director of Children's Services and Education"
"Other Supplies","Discount Stores","Paypal","Supplies and Services related expenditure","07/09/2020","45.00","Director of Children's Services and Education"
"Other Supplies","Misc Speciality Retail","Amazon.Co.Uk","Supplies and Services related expenditure","07/09/2020","19.93","Director of Children's Services and Education"
"Medical","Lab/Med/Hospital Equipment","Wightman & Parrish","Premises related expenditure","07/09/2020","12.84","Director of Housing, Neighbourhood and Building Services"
"Auto/Vehicle Expenses","Automotive Tire Stores","Portsmouth - Protyre","Supplies and Services related expenditure","07/09/2020","33.33","Director of Housing, Neighbourhood and Building Services"
"Medical","Lab/Med/Hospital Equipment","Wightman & Parrish","Premises related expenditure","07/09/2020","79.90","Director of Housing, Neighbourhood and Building Services"
"Business To Business Eqpt/Furn","Stationery/Office Supplies","Www.Banneruk.Com","Supplies and Services related expenditure","07/09/2020","37.26","Director of Finance & Resources"
"Type of Retail Store","Electronics Sales","Currys Online","Supplies and Services related expenditure","07/09/2020","91.66","Director of Housing, Neighbourhood and Building Services"
"Facilities/Repair Supplies","Home Supply Warehouse Stores","B & Q 1260","Premises related expenditure","07/09/2020","52.94","Director of Adult Services"
"Auto/Vehicle Expenses","Auto Service Shops/Non Dealer","Staple Garage","Transport related expenditure","07/09/2020","731.05","Director of Housing, Neighbourhood and Building Services"
"Auto/Vehicle Expenses","Auto Service Shops/Non Dealer","Staple Garage","Transport related expenditure","07/09/2020","54.00","Director of Housing, Neighbourhood and Building Services"
"Government Service","Tax Payments","Dvla Vehicle Tax","Transport related expenditure","07/09/2020","222.92","Director of Housing, Neighbourhood and Building Services"
"Business Expenses/Services","Stationery Stores","Www.Blackwell.Co.Uk","Supplies and Services related expenditure","07/09/2020","15.78","Director of Children's Services and Education"
"Other Supplies","Misc Speciality Retail","Amznmktplace","Supplies and Services related expenditure","07/09/2020","114.88","Director of Children's Services and Education"
"Other Supplies","Misc Speciality Retail","Amazon.Co.Uk","Supplies and Services related expenditure","07/09/2020","587.99","Director of Children's Services and Education"
"Miscellaneous","Other Direct Marketers","Amazon.Co.Uk","Supplies and Services related expenditure","07/09/2020","587.99","Director of Children's Services and Education"
"Business To Business Eqpt/Furn","Stationery/Office Supplies","Www.Banneruk.Com","Supplies and Services related expenditure","07/09/2020","11.79","Director of Regeneration"
"Facilities/Repair Supplies","Hardware Stores","Home Bargains","Supplies and Services related expenditure","07/09/2020","6.65","Director of Children's Services and Education"
"Business Expenses/Services","Postage Stamps","Post Office Counter","Supplies and Services related expenditure","07/09/2020","39.00","Director of Adult Services"
"Facilities/Repair Supplies","Home Supply Warehouse Stores","B & Q 1260","Supplies and Services related expenditure","07/09/2020","9.78","Director of Children's Services and Education"
"Business Services","Business Services - Default","Fast Key Services Limi","Supplies and Services related expenditure","07/09/2020","55.48","Director of Culture, Leisure & Regulatory Services"
"Medical","Lab/Med/Hospital Equipment","Wightman & Parrish Ltd","Premises related expenditure","07/09/2020","145.70","Director of Housing, Neighbourhood and Building Services"
"Business To Business Facility/","Hardware Equipment/Supplies","Ecoprod Technique","Premises related expenditure","07/09/2020","258.55","Director of Housing, Neighbourhood and Building Services"
"Miscellaneous","Other Direct Marketers","Amazon.Co.Uk","Supplies and Services related expenditure","07/09/2020","28.73","Director of Regeneration"
"Government Service","Govt Serv - Default","Disclosure & Barring","Supplies and Services related expenditure","07/09/2020","13.00","Director of Children's Services and Education"
"Type of Retail Store","Grocery Stores/Supermarkets","Tesco Stores 4579","Supplies and Services related expenditure","07/09/2020","3.33","Director of Children's Services and Education"
"Type of Retail Store","Grocery Stores/Supermarkets","Tesco Stores 4579","Supplies and Services related expenditure","07/09/2020","56.81","Director of Children's Services and Education"
"Type of Retail Store","Grocery Stores/Supermarkets","Tesco Stores 4579","Premises related expenditure","07/09/2020","3.42","Director of Children's Services and Education"
"Facilities/Repair Supplies","Lawn/Garden Supply/Nursery","Keydell Nurseries","Premises related expenditure","07/09/2020","33.33","Director of Housing, Neighbourhood and Building Services"
"Facilities/Repair Supplies","Home Supply Warehouse Stores","B & Q 1260","Supplies and Services related expenditure","07/09/2020","34.89","Director of Housing, Neighbourhood and Building Services"
"Other Supplies","Misc Speciality Retail","Amznmktplace","Premises related expenditure","07/09/2020","118.30","Director of Housing, Neighbourhood and Building Services"
"Business To Business Eqpt/Furn","Stationery/Office Supplies","Www.Banneruk.Com","Supplies and Services related expenditure","07/09/2020","15.89","Director of Regeneration"
"Business To Business Eqpt/Furn","Stationery/Office Supplies","Www.Banneruk.Com","Supplies and Services related expenditure","07/09/2020","40.85","Director of Regeneration"
"Business To Business Eqpt/Furn","Stationery/Office Supplies","Www.Banneruk.Com","Supplies and Services related expenditure","07/09/2020","33.29","Director of Regeneration"
"Miscellaneous","Member Organizations - Def","Www.Cips.Org","Supplies and Services related expenditure","07/09/2020","156.00","Director of Finance & Resources"
"Business To Business Facility/","Industrial Supplies - Def","Www.Arco.Co.Uk","Supplies and Services related expenditure","07/06/2020","17.15","Director of Portsmouth International Port"
"Other Supplies","Discount Stores","Argos Ltd","Supplies and Services related expenditure","07/09/2020","15.95","Director of Adult Services"
"Other Supplies","Discount Stores","Argos Ltd","Supplies and Services related expenditure","07/09/2020","23.95","Director of Adult Services"
"Hotels And Motels","Lodging/Hotels/Motels/Resorts","Center Parcs, Moto","Supplies and Services related expenditure","07/09/2020","-529.00","Director of Adult Services"
"Other Supplies","Discount Stores","Argos Ltd","Supplies and Services related expenditure","07/09/2020","218.29","Director of Children's Services and Education"
"Other Supplies","Misc Speciality Retail","Amazon.Co.Uk","Supplies and Services related expenditure","07/09/2020","5.42","Director of Children's Services and Education"
"Other Supplies","Misc Speciality Retail","Amazon.Co.Uk","Supplies and Services related expenditure","07/09/2020","26.12","Director of Children's Services and Education"
"Business To Business Facility/","Electrical Parts/Equipment","Rs Components","Premises related expenditure","07/09/2020","302.33","Director of Portsmouth International Port"
"Business To Business Facility/","Industrial Supplies - Def","Www.Arco.Co.Uk","Supplies and Services related expenditure","07/09/2020","10.22","Director of Housing, Neighbourhood and Building Services"
"Other Supplies","Discount Stores","Argos Farlington I","Premises related expenditure","07/09/2020","8.33","Director of Housing, Neighbourhood and Building Services"
"Other Supplies","Discount Stores","Argos Farlington I","Supplies and Services related expenditure","07/09/2020","24.99","Director of Housing, Neighbourhood and Building Services"
"Other Supplies","Discount Stores","Argos Ltd","Supplies and Services related expenditure","07/09/2020","36.62","Director of Adult Services"
"Business To Business Facility/","Industrial Supplies - Def","Www.Arco.Co.Uk","Supplies and Services related expenditure","07/10/2020","24.57","Director of Portsmouth International Port"
"Facilities/Repair Supplies","Lumber/Build. Supply Stores","City Electrical Fa","Premises related expenditure","07/10/2020","25.00","Director of Adult Services"
"Business To Business Eqpt/Furn","Stationery/Office Supplies","Www.Banneruk.Com","Supplies and Services related expenditure","07/10/2020","2.20","Director of Housing, Neighbourhood and Building Services"
"Business To Business Eqpt/Furn","Stationery/Office Supplies","Www.Banneruk.Com","Supplies and Services related expenditure","07/10/2020","22.32","Director of Housing, Neighbourhood and Building Services"
"Facilities/Repair Services","Spec Contractors - Default","Www.Systemq.Com","Supplies and Services related expenditure","07/10/2020","86.00","Director of Housing, Neighbourhood and Building Services"
"Facilities/Repair Supplies","Home Supply Warehouse Stores","Screwfix Direct","Supplies and Services related expenditure","07/10/2020","83.33","Director of Children's Services and Education"
"Other Supplies","Misc Speciality Retail","Amznmktplace","Transport related expenditure","07/10/2020","3.50","Director of Regeneration"
"Facilities/Repair Supplies","Lawn/Garden Supply/Nursery","Fargro Ltd","Premises related expenditure","07/10/2020","514.80","Director of Culture, Leisure & Regulatory Services"
"Other Supplies","Department Stores","The Range","Supplies and Services related expenditure","07/10/2020","8.33","Director of Children's Services and Education"
"Personal Service Provider","Computer Program/Sys Design","Browserstack.Com","Supplies and Services related expenditure","07/10/2020","490.79","Director of Corporate Services"
"Facilities/Repair Supplies","Home Supply Warehouse Stores","Screwfix Direct","Supplies and Services related expenditure","07/10/2020","2.56","Director of Culture, Leisure & Regulatory Services"
"Government Service","Govt Serv - Default","Disclosure & Barring","Supplies and Services related expenditure","07/10/2020","13.00","Director of Children's Services and Education"
"Other Supplies","Misc Speciality Retail","Amznmktplace","Premises related expenditure","07/10/2020","4.99","Director of Children's Services and Education"
"Other Supplies","Misc Speciality Retail","Amznmktplace","Premises related expenditure","07/10/2020","5.42","Director of Children's Services and Education"
"Other Supplies","Misc Speciality Retail","Amznmktplace","Premises related expenditure","07/10/2020","6.25","Director of Children's Services and Education"
"Other Supplies","Misc Speciality Retail","Amznmktplace","Premises related expenditure","07/10/2020","7.33","Director of Children's Services and Education"
"Business To Business Eqpt/Furn","Computer Software Stores","Abc Does Ltd","Supplies and Services related expenditure","07/10/2020","30.00","Director of Children's Services and Education"
"Facilities/Repair Supplies","Hardware Stores","Home Bargains","Premises related expenditure","07/10/2020","5.57","Director of Adult Services"
"Amusement/Entertainment","Motion Picture Theatres","Cea Card","Supplies and Services related expenditure","07/10/2020","6.00","Director of Adult Services"
"Personal Service Provider","Legal Services Attorneys","Judge And Priestley","Supplies and Services related expenditure","07/10/2020","434.49","Director of Adult Services"
"Business Services","Advertising Services","Facebk Exf9jue8z2","Supplies and Services related expenditure","07/10/2020","300.00","Director of Corporate Services"
"Transportation Conveyor","Passenger Railways","Thetrainline.Com","Transport related expenditure","07/10/2020","87.11","Director of Children's Services and Education"
"Business To Business Eqpt/Furn","Stationery/Office Supplies","Www.Banneruk.Com","Supplies and Services related expenditure","07/10/2020","106.88","Director of Housing, Neighbourhood and Building Services"
"Business To Business Eqpt/Furn","Stationery/Office Supplies","Www.Banneruk.Com","Supplies and Services related expenditure","07/10/2020","196.62","Director of Housing, Neighbourhood and Building Services"
"Government Service","Schools - Default","Andrew Simpson Watersp","Agency and Third Party Payments related expenditure","07/10/2020","25.00","Director of Children's Services and Education"
"Government Service","Schools - Default","Andrew Simpson Watersp","Agency and Third Party Payments related expenditure","07/10/2020","25.00","Director of Children's Services and Education"
"Government Service","Schools - Default","Andrew Simpson Watersp","Agency and Third Party Payments related expenditure","07/10/2020","25.00","Director of Children's Services and Education"
"Government Service","Schools - Default","Andrew Simpson Watersp","Agency and Third Party Payments related expenditure","07/10/2020","25.00","Director of Children's Services and Education"
"Government Service","Schools - Default","Andrew Simpson Watersp","Agency and Third Party Payments related expenditure","07/10/2020","25.00","Director of Children's Services and Education"
"Facilities/Repair Services","Spec Contractors - Default","Www.Easygates.Co.Uk","Supplies and Services related expenditure","07/10/2020","20.75","Director of Culture, Leisure & Regulatory Services"
"Type of Retail Store","Grocery Stores/Supermarkets","Tesco Store 3048","Supplies and Services related expenditure","07/10/2020","16.67","Director of Children's Services and Education"
"Hotels And Motels","Lodging/Hotels/Motels/Resorts","Portsmouth Inns","Supplies and Services related expenditure","07/10/2020","150.00","Director of Children's Services and Education"
"Medical","Lab/Med/Hospital Equipment","Incchoice","Supplies and Services related expenditure","07/10/2020","108.00","Director of Adult Services"
"Miscellaneous","Financial Inst/Merchandise","A C S Line 2","Supplies and Services related expenditure","07/10/2020","28.66","Director of Regeneration"
"Miscellaneous","Financial Inst/Merchandise","A C S Line 2","Supplies and Services related expenditure","07/10/2020","415.83","Director of Regeneration"
"Eating And Drinking Places","Fast Food Restaurants","Speedy Pizza & Kens Fr","Supplies and Services related expenditure","07/10/2020","9.98","Director of Children's Services and Education"
"Business To Business Eqpt/Furn","Book Stores","Waterstones.Com","Supplies and Services related expenditure","07/10/2020","64.95","Director of Children's Services and Education"
"Government Service","Schools - Default","Www.Coramlifeeducatio.","Supplies and Services related expenditure","07/10/2020","345.00","Director of Children's Services and Education"
"Business To Business Facility/","Industrial Supplies - Def","Www.Arco.Co.Uk","Supplies and Services related expenditure","07/10/2020","57.74","Director of Housing, Neighbourhood and Building Services"
"Medical","Lab/Med/Hospital Equipment","Wightman & Parrish Ltd","Premises related expenditure","07/10/2020","38.90","Director of Housing, Neighbourhood and Building Services"
"Other Supplies","Misc Speciality Retail","Amznmktplace","Supplies and Services related expenditure","07/10/2020","12.49","Director of Housing, Neighbourhood and Building Services"
"Other Supplies","Department Stores","The Range","Supplies and Services related expenditure","07/10/2020","41.58","Director of Children's Services and Education"
"Other Supplies","Misc Speciality Retail","Amznmktplace","Supplies and Services related expenditure","07/10/2020","10.42","Director of Children's Services and Education"
"Government Service","Govt Serv - Default","Www.Ico.Org.Uk","Supplies and Services related expenditure","07/10/2020","40.00","Director of Children's Services and Education"
"Business Expenses/Services","Stationery Stores","Mil/Superstickers-","Supplies and Services related expenditure","07/10/2020","67.19","Director of Children's Services and Education"
"Government Service","Govt Serv - Default","Hampshire County Counc","Supplies and Services related expenditure","07/10/2020","113.16","Director of Children's Services and Education"
"Government Service","Schools - Default","Www.Smartkids2.Co.Uk","Supplies and Services related expenditure","07/10/2020","181.86","Director of Children's Services and Education"
"Miscellaneous","Other Direct Marketers","Amazon.Co.Uk","Supplies and Services related expenditure","07/10/2020","40.00","Director of Children's Services and Education"
"Other Supplies","Misc Speciality Retail","Amznmktplace","Supplies and Services related expenditure","07/10/2020","31.01","Director of Adult Services"
"Other Supplies","Misc Speciality Retail","Amznmktplace","Supplies and Services related expenditure","07/10/2020","31.01","Director of Adult Services"
"Other Supplies","Misc Speciality Retail","Amznmktplace","Supplies and Services related expenditure","07/10/2020","99.90","Director of Adult Services"
"Other Supplies","Misc Speciality Retail","Amznmktplace","Supplies and Services related expenditure","07/10/2020","99.90","Director of Adult Services"
"Facilities/Repair Supplies","Home Supply Warehouse Stores","B & Q 1260","Supplies and Services related expenditure","07/10/2020","53.78","Director of Housing, Neighbourhood and Building Services"
"Type of Retail Store","Grocery Stores/Supermarkets","Wm Morrisons Store","Supplies and Services related expenditure","07/10/2020","22.80","Director of Housing, Neighbourhood and Building Services"
"Type of Retail Store","Grocery Stores/Supermarkets","Wm Morrisons Store","Supplies and Services related expenditure","07/10/2020","43.60","Director of Housing, Neighbourhood and Building Services"
"Facilities Maintenance","Clean/Maint/Janitoral Serv","Initial Washroom","Premises related expenditure","07/10/2020","74.28","Director of Regeneration"
"Government Service","Govt Serv - Default","Portsmouth City Co","Supplies and Services related expenditure","07/10/2020","38.00","Director of Children's Services and Education"
"Government Service","Govt Serv - Default","Portsmouth City Co","Supplies and Services related expenditure","07/10/2020","38.00","Director of Children's Services and Education"
"Other Supplies","Misc Speciality Retail","Amznmktplace","Supplies and Services related expenditure","07/10/2020","2.98","Director of Children's Services and Education"
"Other Supplies","Misc Speciality Retail","Amznmktplace","Supplies and Services related expenditure","07/10/2020","8.94","Director of Children's Services and Education"
"Government Service","Colleges/Univ/Jc/Profession","Gls Educational Su","Supplies and Services related expenditure","07/10/2020","75.90","Director of Children's Services and Education"
"Business To Business Eqpt/Furn","Book Stores","Scholastic Ltd","Supplies and Services related expenditure","07/10/2020","288.42","Director of Children's Services and Education"
"Hotels And Motels","Lodging/Hotels/Motels/Resorts","Southsea Rocks Hotel","Agency and Third Party Payments related expenditure","07/10/2020","170.83","Director of Housing, Neighbourhood and Building Services"
"Other Supplies","Misc Speciality Retail","Amznmktplace","Supplies and Services related expenditure","07/10/2020","7.11","Director of Children's Services and Education"
"Business To Business Eqpt/Furn","Stationery/Office Supplies","Www.Banneruk.Com","Supplies and Services related expenditure","07/10/2020","80.36","Director of Adult Services"
"Other Supplies","Misc Speciality Retail","Value Products Ltd","Supplies and Services related expenditure","07/10/2020","185.00","Director of Children's Services and Education"
"Facilities/Repair Supplies","Home Supply Warehouse Stores","B&q Direct","Supplies and Services related expenditure","07/10/2020","34.84","Director of Housing, Neighbourhood and Building Services"
"Medical","Lab/Med/Hospital Equipment","Wightman & Parrish","Premises related expenditure","07/10/2020","190.15","Director of Housing, Neighbourhood and Building Services"
"Business To Business Facility/","Industrial Supplies - Def","Www.Arco.Co.Uk","Supplies and Services related expenditure","07/10/2020","67.17","Director of Culture, Leisure & Regulatory Services"
"Miscellaneous","Member Organizations - Def","The British Associatio","Employees related expenditure","07/10/2020","-120.00","Director of Adult Services"
"Other Supplies","Misc Speciality Retail","Amznmktplace Amazon.Co.Uk","Supplies and Services related expenditure","07/10/2020","8.74","Director of Children's Services and Education"
"Business To Business Eqpt/Furn","Stationery/Office Supplies","Www.Banneruk.Com","Supplies and Services related expenditure","07/10/2020","8.94","Director of Children's Services and Education"
"Business To Business Eqpt/Furn","Stationery/Office Supplies","Www.Banneruk.Com","Supplies and Services related expenditure","07/10/2020","8.94","Director of Children's Services and Education"
"Type of Retail Store","Grocery Stores/Supermarkets","Tesco Store 3055","Supplies and Services related expenditure","07/10/2020","11.98","Director of Children's Services and Education"
"Type of Retail Store","Grocery Stores/Supermarkets","Tesco Store 3055","Supplies and Services related expenditure","07/10/2020","20.94","Director of Children's Services and Education"
"Business To Business Eqpt/Furn","Stationery/Office Supplies","Www.Banneruk.Com","Supplies and Services related expenditure","07/10/2020","7.32","Director of Adult Services"
"Medical","Lab/Med/Hospital Equipment","Wightman & Parrish Ltd","Supplies and Services related expenditure","07/10/2020","51.96","Director of Adult Services"
"Medical","Lab/Med/Hospital Equipment","Wightman & Parrish Ltd","Premises related expenditure","07/10/2020","666.82","Director of Adult Services"
"Other Supplies","Discount Stores","Argos Ltd","Supplies and Services related expenditure","07/10/2020","50.00","Director of Children's Services and Education"
"Business To Business Facility/","Industrial Supplies - Def","Www.Arco.Co.Uk","Supplies and Services related expenditure","07/10/2020","19.16","Director of Housing, Neighbourhood and Building Services"
"Other Supplies","Catalog Merchant","Www.Nisbets.Com","Premises related expenditure","07/10/2020","32.16","Director of Children's Services and Education"
"Government Service","Schools - Default","Paypal","Supplies and Services related expenditure","07/10/2020","99.00","Director of Children's Services and Education"
"Eating And Drinking Places","Fast Food Restaurants","Costa Coffee 43040140","Agency and Third Party Payments related expenditure","07/10/2020","3.45","Director of Children's Services and Education"
"Eating And Drinking Places","Fast Food Restaurants","Costa Coffee 43040140","Agency and Third Party Payments related expenditure","07/10/2020","2.79","Director of Children's Services and Education"
"Clothing Services","Family Clothing Stores","Primark","Supplies and Services related expenditure","07/10/2020","44.50","Director of Children's Services and Education"
"Type of Retail Store","Grocery Stores/Supermarkets","Fruit Basket Ltd","Supplies and Services related expenditure","07/10/2020","40.98","Director of Adult Services"
"Type of Retail Store","Misc Food Stores - Default","Bransbury Park Butchers","Supplies and Services related expenditure","07/10/2020","90.98","Director of Adult Services"
"Type of Retail Store","Freezer/Meat Lockers","Dennis Edwards Food Serv","Supplies and Services related expenditure","07/10/2020","194.89","Director of Adult Services"
"Equipment And Furniture","Phone Serv/Equip Non-Util","South West Comm Grp Ltd","Supplies and Services related expenditure","07/10/2020","328.61","Director of Adult Services"
"Type of Retail Store","Grocery Stores/Supermarkets","Tesco Store 2266","Supplies and Services related expenditure","07/11/2020","7.49","Director of Children's Services and Education"
"Miscellaneous","Continuity/Subscription Mercht","Amazon Prime","Supplies and Services related expenditure","07/11/2020","7.99","Director of Children's Services and Education"
"Miscellaneous","Other Direct Marketers","Amazon.Co.Uk","Supplies and Services related expenditure","07/11/2020","30.97","Director of Children's Services and Education"
"Other Supplies","Misc Speciality Retail","Amznmktplace","Supplies and Services related expenditure","07/11/2020","119.98","Director of Children's Services and Education"
"Other Supplies","Discount Stores","B&m Retail","Supplies and Services related expenditure","07/11/2020","28.74","Director of Culture, Leisure & Regulatory Services"
"Other Supplies","Misc Speciality Retail","Amznmktplace","Supplies and Services related expenditure","07/11/2020","145.90","Director of Children's Services and Education"
"Other Supplies","Misc Speciality Retail","Amznmktplace","Supplies and Services related expenditure","07/11/2020","0.99","Director of Children's Services and Education"
"Business To Business Eqpt/Furn","Computers/Peripherals/Software","19 Computing (UK) Limi","Agency and Third Party Payments related expenditure","07/11/2020","99.96","Director of Culture, Leisure & Regulatory Services"
"Miscellaneous","Other Direct Marketers","Amazon.Co.Uk","Supplies and Services related expenditure","07/11/2020","40.00","Director of Children's Services and Education"
"Other Supplies","Misc Speciality Retail","Amznmktplace","Supplies and Services related expenditure","07/11/2020","180.00","Director of Children's Services and Education"
"Other Supplies","Department Stores","The Range","Premises related expenditure","07/11/2020","147.42","Director of Children's Services and Education"
"Miscellaneous","Other Direct Marketers","Amazon.Co.Uk","Supplies and Services related expenditure","07/11/2020","35.82","Director of Children's Services and Education"
"Auto/Vehicle Expenses","Auto Service Shops/Non Dealer","Boarhunt Group-Vt","Supplies and Services related expenditure","07/11/2020","971.54","Director of Children's Services and Education"
"Facilities/Repair Supplies","Lumber/Build. Supply Stores","Selco Trading Ctr","Premises related expenditure","07/11/2020","14.60","Director of Children's Services and Education"
"Other Supplies","Misc Speciality Retail","Amznmktplace","Supplies and Services related expenditure","07/11/2020","5.24","Director of Corporate Services"
"Type of Retail Store","Grocery Stores/Supermarkets","Tesco Stores 5153","Supplies and Services related expenditure","07/11/2020","3.20","Director of Children's Services and Education"
"Type of Retail Store","Grocery Stores/Supermarkets","Eastern Stores Chinese S","Supplies and Services related expenditure","07/11/2020","5.15","Director of Children's Services and Education"
"Digital Goods","Digital Goods - Games","Nintendo Of Europe Gmbh","Agency and Third Party Payments related expenditure","07/11/2020","7.99","Director of Children's Services and Education"
"Miscellaneous","Other Direct Marketers","Amazon.Co.Uk","Supplies and Services related expenditure","07/11/2020","54.69","Director of Children's Services and Education"
"Other Supplies","Misc Speciality Retail","Amznmktplace","Supplies and Services related expenditure","07/12/2020","3.32","Director of Portsmouth International Port"
"Automobile Services & Supplies","Service Stations","Shell Farlignton","Transport related expenditure","07/12/2020","14.88","Director of Regeneration"
"Government Service","Schools - Default","Nspcc","Supplies and Services related expenditure","07/12/2020","94.50","Director of Children's Services and Education"
"Type of Retail Store","Grocery Stores/Supermarkets","Wm Morrisons Store","Supplies and Services related expenditure","07/12/2020","1.46","Director of Children's Services and Education"
"Type of Retail Store","Grocery Stores/Supermarkets","Wm Morrisons Store","Supplies and Services related expenditure","07/12/2020","23.05","Director of Children's Services and Education"
"Automobile Services & Supplies","Service Stations","Tesco Pfs 4274","Transport related expenditure","07/12/2020","38.37","Director of Regeneration"
"Other Supplies","Discount Stores","B&m Retail","Supplies and Services related expenditure","07/12/2020","24.00","Director of Children's Services and Education"
"Personal Service Provider","Computer Program/Sys Design","Squarespace Inc.","Supplies and Services related expenditure","07/12/2020","16.39","Director of Children's Services and Education"
"Other Supplies","Misc Speciality Retail","Amznmktplace","Premises related expenditure","07/12/2020","84.99","Director of Housing, Neighbourhood and Building Services"
"Type of Retail Store","Grocery Stores/Supermarkets","Sainsburys Waterlo","Supplies and Services related expenditure","07/12/2020","50.00","Director of Portsmouth International Port"
"Miscellaneous","Other Direct Marketers","Amazon.Co.Uk","Supplies and Services related expenditure","07/12/2020","8.47","Director of Children's Services and Education"
"Other Supplies","Misc Speciality Retail","Amznmktplace","Supplies and Services related expenditure","07/12/2020","130.00","Director of Children's Services and Education"
"Other Supplies","Misc Speciality Retail","Amznmktplace","Supplies and Services related expenditure","07/12/2020","216.42","Director of Children's Services and Education"
"Transportation Conveyor","Parking Lots, Meters, Garages","Portsmouth City Co","Transport related expenditure","07/12/2020","3.50","Director of Adult Services"
"Transportation Conveyor","Parking Lots, Meters, Garages","Portsmouth City Co","Transport related expenditure","07/12/2020","0.17","Director of Adult Services"
"Other Supplies","Misc Speciality Retail","Amznmktplace","Premises related expenditure","07/12/2020","3.73","Director of Children's Services and Education"
"Other Supplies","Misc Speciality Retail","Amznmktplace","Premises related expenditure","07/12/2020","5.83","Director of Children's Services and Education"
"Other Supplies","Misc Speciality Retail","Amznmktplace","Supplies and Services related expenditure","07/12/2020","8.99","Director of Children's Services and Education"
"Other Supplies","Misc Speciality Retail","Amznmktplace","Supplies and Services related expenditure","07/12/2020","29.97","Director of Children's Services and Education"
"Business To Business Services","Misc Publishing & Printing","Buffer Publish Pro Mo","Supplies and Services related expenditure","07/12/2020","12.30","Chief Exec"
"Other Supplies","Misc Speciality Retail","Amznmktplace","Supplies and Services related expenditure","07/12/2020","87.46","Director of Children's Services and Education"
"Other Supplies","Misc Speciality Retail","Amznmktplace","Supplies and Services related expenditure","07/12/2020","31.22","Director of Children's Services and Education"
"Type of Retail Store","Grocery Stores/Supermarkets","Tesco Stores 4579","Supplies and Services related expenditure","07/12/2020","18.02","Director of Children's Services and Education"
"Type of Retail Store","Grocery Stores/Supermarkets","Tesco Stores 4579","Supplies and Services related expenditure","07/12/2020","3.29","Director of Children's Services and Education"
"Type of Retail Store","Grocery Stores/Supermarkets","Tesco Stores 4579","Premises related expenditure","07/12/2020","1.08","Director of Children's Services and Education"
"Type of Retail Store","Grocery Stores/Supermarkets","Tesco Stores 4579","Supplies and Services related expenditure","07/12/2020","11.85","Director of Children's Services and Education"
"Other Supplies","Misc Speciality Retail","Amznmktplace","Supplies and Services related expenditure","07/12/2020","4.98","Director of Corporate Services"
"Other Supplies","Misc Gen Merchandise - Def","Flatshield","Supplies and Services related expenditure","07/12/2020","19.17","Director of Children's Services and Education"
"Miscellaneous","Other Direct Marketers","Amazon.Co.Uk","Premises related expenditure","07/12/2020","12.88","Director of Children's Services and Education"
"Miscellaneous","Other Direct Marketers","Amazon.Co.Uk","Supplies and Services related expenditure","07/12/2020","63.96","Director of Children's Services and Education"
"Type of Retail Store","Drug Stores & Pharmacies","Savers Health & Beauty","Premises related expenditure","07/12/2020","13.33","Director of Housing, Neighbourhood and Building Services"
"Eating And Drinking Places","Fast Food Restaurants","Kfc Portsmouth","Agency and Third Party Payments related expenditure","07/12/2020","5.85","Director of Children's Services and Education"
"Eating And Drinking Places","Fast Food Restaurants","McDonalds","Agency and Third Party Payments related expenditure","07/12/2020","30.35","Director of Children's Services and Education"
"Type of Retail Store","Grocery Stores/Supermarkets","Wm Morrisons Store","Supplies and Services related expenditure","07/12/2020","1.75","Director of Children's Services and Education"
"Type of Retail Store","Grocery Stores/Supermarkets","Wm Morrisons Store","Supplies and Services related expenditure","07/12/2020","75.21","Director of Children's Services and Education"
"Type of Retail Store","Grocery Stores/Supermarkets","Tesco Stores 4579","Supplies and Services related expenditure","","148.32","Director of Children's Services and Education"
"Business To Business Facility/","Industrial Supplies - Def","Www.Arco.Co.Uk","Supplies and Services related expenditure","07/07/2020","21.48","Director of Housing, Neighbourhood and Building Services"
"Business To Business Facility/","Industrial Supplies - Def","Www.Arco.Co.Uk","Supplies and Services related expenditure","07/09/2020","41.83","Director of Portsmouth International Port"
"Business To Business Facility/","Industrial Supplies - Def","Www.Arco.Co.Uk","Supplies and Services related expenditure","07/10/2020","61.68","Director of Regeneration"
"Government Service","Schools - Default","Www.Ncfe.Org.Uk","Supplies and Services related expenditure","","39.05","Director of Children's Services and Education"
"Transportation Conveyor","Passenger Railways","Trainline","Transport related expenditure","","-63.90","Director of Housing, Neighbourhood and Building Services"
"Freight/Courier/Warehouse Svcs","Public Warehousing","Big Yellow S S Portsmout","Premises related expenditure","","27.00","Director of Housing, Neighbourhood and Building Services"
"Freight/Courier/Warehouse Svcs","Public Warehousing","Big Yellow S S Portsmout","Premises related expenditure","","419.00","Director of Housing, Neighbourhood and Building Services"
"Government Service","Govt Serv - Default","Dvla Driver Online","Supplies and Services related expenditure","","34.00","Director of Children's Services and Education"
"Government Service","Govt Serv - Default","Ofsted Internet","Supplies and Services related expenditure","","220.00","Director of Children's Services and Education"
"Facilities/Repair Supplies","Lumber/Build. Supply Stores","Www.Credit.Trade.C","Premises related expenditure","","5.26","Director of Children's Services and Education"
"Facilities Maintenance","Specialty Cleaning/Polishing","Cjs Portsmouth Limited","Premises related expenditure","","161.86","Director of Children's Services and Education"
"Type of Retail Store","Electronics Sales","Dfr*maplin.Co.Uk","Transport related expenditure","","15.82","Director of Regeneration"
"Business To Business Eqpt/Furn","Computers/Peripherals/Software","Hotjar","Supplies and Services related expenditure","","26.99","Director of Corporate Services"
"Type of Retail Store","Grocery Stores/Supermarkets","Aldi Stores Ltd","Supplies and Services related expenditure","","71.60","Director of Adult Services"
"Other Supplies","Misc Speciality Retail","Amznmktplace","Premises related expenditure","","22.46","Director of Children's Services and Education"
"Facilities/Repair Supplies","Home Supply Warehouse Stores","B & Q 1238","Premises related expenditure","","-10.29","Director of Children's Services and Education"
"Facilities/Repair Supplies","Home Supply Warehouse Stores","B&q Direct","Premises related expenditure","","60.29","Director of Children's Services and Education"
"Automobile Rental","Motor Home/Rv Rentals","Southsea Leisure Park","Agency and Third Party Payments related expenditure","","1,040.00","Director of Housing, Neighbourhood and Building Services"
"Automobile Rental","Motor Home/Rv Rentals","Southsea Leisure Park","Agency and Third Party Payments related expenditure","","303.33","Director of Housing, Neighbourhood and Building Services"
"Automobile Rental","Motor Home/Rv Rentals","Southsea Leisure Park","Agency and Third Party Payments related expenditure","","1,400.00","Director of Housing, Neighbourhood and Building Services"
"Automobile Rental","Motor Home/Rv Rentals","Southsea Leisure Park","Agency and Third Party Payments related expenditure","","315.00","Director of Housing, Neighbourhood and Building Services"
"Medical","Lab/Med/Hospital Equipment","Incchoice","Supplies and Services related expenditure","","51.09","Director of Adult Services"
"Medical","Lab/Med/Hospital Equipment","Complete Care Shop","Supplies and Services related expenditure","","128.25","Director of Adult Services"
"Business To Business Facility/","Industrial Supplies - Def","Www.Arco.Co.Uk","Premises related expenditure","","120.82","Director of Housing, Neighbourhood and Building Services"
"Facilities/Repair Supplies","Home Supply Warehouse Stores","Screwfix Direct","Supplies and Services related expenditure","","66.66","Director of Culture, Leisure & Regulatory Services"
"Facilities/Repair Supplies","Home Supply Warehouse Stores","Screwfix Direct","Supplies and Services related expenditure","","59.98","Director of Culture, Leisure & Regulatory Services"
"Facilities Maintenance","Specialty Cleaning/Polishing","Cjs Portsmouth Limited","Premises related expenditure","","320.20","Director of Children's Services and Education"
"Miscellaneous","Continuity/Subscription Mercht","Linkedin 5480856463 Lnkd.","Supplies and Services related expenditure","","80.20","Director of Regeneration"
"Transportation Conveyor","Passenger Railways","Swrailway Tck Off","Supplies and Services related expenditure","","12.20","Director of Children's Services and Education"
"Other Supplies","Discount Stores","Argos Ltd","Supplies and Services related expenditure","","299.99","Director of Children's Services and Education"
"Business Expenses/Services","Postage Stamps","The Post Office","Supplies and Services related expenditure","","2.95","Director of Culture, Leisure & Regulatory Services"
"Medical","Lab/Med/Hospital Equipment","Wightman & Parrish Ltd","Premises related expenditure","","316.22","Director of Housing, Neighbourhood and Building Services"
"Business Expenses/Services","Books/Periodicals/Newspapers","Www.Wheelersbooks.Co.N","Supplies and Services related expenditure","","183.70","Director of Culture, Leisure & Regulatory Services"
"Business Expenses/Services","Books/Periodicals/Newspapers","Www.Wheelersbooks.Co.N","Supplies and Services related expenditure","","406.49","Director of Culture, Leisure & Regulatory Services"
"Business Expenses/Services","Postage Stamps","The Post Office","Supplies and Services related expenditure","","23.92","Director of Housing, Neighbourhood and Building Services"
"Facilities/Repair Supplies","Automotive Parts Stores","National Windscreens","Transport related expenditure","","220.00","Director of Portsmouth International Port"
"Personal Service Provider","Commercial Photo/Art/Graph","Pp*ospreycompa","Supplies and Services related expenditure","","376.00","Director of Regeneration"
"Other Supplies","Misc Speciality Retail","Amznmktplace","Supplies and Services related expenditure","","4.08","Director of Children's Services and Education"
"Other Supplies","Misc Speciality Retail","Amznmktplace","Supplies and Services related expenditure","","58.25","Director of Children's Services and Education"
"Other Supplies","Misc Speciality Retail","Amznmktplace","Supplies and Services related expenditure","","175.33","Director of Children's Services and Education"
"Government Service","Govt Serv - Default","Mmo","Capital related expenditure","","329.00","Capital - Leader - Port"
"Other Supplies","Misc Speciality Retail","Amznmktplace","Supplies and Services related expenditure","","7.44","Director of Children's Services and Education"
"Other Supplies","Misc Speciality Retail","Amznmktplace","Premises related expenditure","","34.07","Director of Housing, Neighbourhood and Building Services"
"Facilities/Repair Supplies","Hardware Stores","Www.Toolstation.Com","Premises related expenditure","","69.69","Director of Housing, Neighbourhood and Building Services"
"Caterers Food","Caterers","Bookerecomm","Supplies and Services related expenditure","","494.12","Director of Housing, Neighbourhood and Building Services"
"Caterers Food","Caterers","Bookerecomm","Supplies and Services related expenditure","","35.97","Director of Housing, Neighbourhood and Building Services"
"Miscellaneous","Other Direct Marketers","Amazon.Co.Uk","Premises related expenditure","","5.83","Director of Children's Services and Education"
"Miscellaneous","Other Direct Marketers","Amazon.Co.Uk","Premises related expenditure","","12.75","Director of Children's Services and Education"
"Other Supplies","Misc Speciality Retail","Amznmktplace","Premises related expenditure","","6.24","Director of Children's Services and Education"
"Other Supplies","Discount Stores","B&m Retail","Supplies and Services related expenditure","","6.65","Director of Housing, Neighbourhood and Building Services"
"Business To Business Eqpt/Furn","Stationery/Office Supplies","Www.Banneruk.Com","Supplies and Services related expenditure","","11.66","Director of Adult Services"
"Business To Business Eqpt/Furn","Stationery/Office Supplies","Www.Banneruk.Com","Supplies and Services related expenditure","","93.54","Director of Adult Services"
"Facilities/Repair Supplies","Home Supply Warehouse Stores","Screwfix Direct","Premises related expenditure","","20.79","Director of Children's Services and Education"
"Type of Retail Store","Grocery Stores/Supermarkets","Asda George Com Leeds","Premises related expenditure","","-30.00","Director of Children's Services and Education"
"Business Services","Business Services - Default","Eb *portsmouth Inclusi","Supplies and Services related expenditure","","38.32","Director of Children's Services and Education"
"Other Supplies","Misc Speciality Retail","Amazon.Co.Uk","Supplies and Services related expenditure","","385.27","Director of Children's Services and Education"
"Other Supplies","Misc Speciality Retail","Amznmktplace Amazon.Co.Uk","Supplies and Services related expenditure","","38.33","Director of Portsmouth International Port"
"Facilities/Repair Supplies","Lumber/Build. Supply Stores","Www.Brewers.Co.Uk","Premises related expenditure","","36.95","Director of Children's Services and Education"
"Other Supplies","Misc Speciality Retail","Amznmktplace","Supplies and Services related expenditure","","4.98","Director of Adult Services"
"Business To Business Facility/","Construction Materials - Def","Accurate Tool Repairs & S","Supplies and Services related expenditure","","144.00","Director of Housing, Neighbourhood and Building Services"
"Government Service","Govt Serv - Default","Portsmouth City Co","Transport related expenditure","","63.33","Director of Children's Services and Education"
"Automobile Services & Supplies","Service Stations","Green Road Svc Stn Ltd","Supplies and Services related expenditure","","5.68","Director of Children's Services and Education"
"Government Service","Schools - Default","Me Learning","Supplies and Services related expenditure","","20.00","Director of Children's Services and Education"
"Business Services","Business Services - Default","Www.Local.Gov.Uk","Employees related expenditure","","25.00","Director of Corporate Services"
"Facilities/Repair Supplies","Home Supply Warehouse Stores","B & Q 1260","Premises related expenditure","","8.65","Director of Adult Services"
"Facilities/Repair Supplies","Lumber/Build. Supply Stores","City Electrical Fa","Premises related expenditure","","14.20","Director of Adult Services"
"Miscellaneous","Continuity/Subscription Mercht","Vimeo Plus Monthly","Supplies and Services related expenditure","","10.00","Director of Portsmouth International Port"
"Amusement/Entertainment","Theatrical Producers","Tickets08712200260","Agency and Third Party Payments related expenditure","","37.25","Director of Children's Services and Education"
"Type of Retail Store","Grocery Stores/Supermarkets","Tesco Store 3055","Supplies and Services related expenditure","","2.84","Director of Children's Services and Education"
"Type of Retail Store","Grocery Stores/Supermarkets","Tesco Store 3055","Supplies and Services related expenditure","","19.48","Director of Children's Services and Education"
"Type of Retail Store","Grocery Stores/Supermarkets","Tesco Store 3055","Premises related expenditure","","14.06","Director of Children's Services and Education"
"Other Supplies","Misc Speciality Retail","Amznmktplace Amazon.Co.Uk","Supplies and Services related expenditure","","19.99","Director of Adult Services"
"Business To Business Other Sup","Uniforms & Commercial Clothing","Alexandra Website","Supplies and Services related expenditure","","408.08","Director of Adult Services"
"Type of Retail Store","Grocery Stores/Supermarkets","Iceland","Supplies and Services related expenditure","","26.13","Director of Children's Services and Education"
"Other Supplies","Misc Speciality Retail","Amznmktplace","Premises related expenditure","","187.46","Director of Children's Services and Education"
"Other Supplies","Misc Speciality Retail","Amazon.Co.Uk","Supplies and Services related expenditure","","23.30","Director of Culture, Leisure & Regulatory Services"
"Other Supplies","Misc Speciality Retail","Amazon.Co.Uk","Supplies and Services related expenditure","","46.60","Director of Culture, Leisure & Regulatory Services"
"Other Supplies","Misc Speciality Retail","Amznmktplace","Supplies and Services related expenditure","","6.89","Director of Regeneration"
"Equipment And Furniture","Household Appliance Stores","Manomano","Supplies and Services related expenditure","","164.85","Director of Regeneration"
"Government Service","Govt Serv - Default","Disclosure & Barring","Supplies and Services related expenditure","","13.00","Director of Children's Services and Education"
"Business Services","Business Services - Default","Eb *portsmouth Inclusi","Supplies and Services related expenditure","","38.32","Director of Children's Services and Education"
"Miscellaneous","Other Direct Marketers","Amazon.Co.Uk","Supplies and Services related expenditure","","89.37","Director of Children's Services and Education"
"Business Services","Business Services - Default","Cisco Systems","Supplies and Services related expenditure","","159.12","Director of Corporate Services"
"Business Services","Business Services - Default","Cisco Systems","Supplies and Services related expenditure","","159.11","Director of Culture, Leisure & Regulatory Services"
"Medical","Lab/Med/Hospital Equipment","Wightman & Parrish","Supplies and Services related expenditure","","21.31","Director of Housing, Neighbourhood and Building Services"
"Medical","Lab/Med/Hospital Equipment","Wightman & Parrish","Supplies and Services related expenditure","","158.00","Director of Housing, Neighbourhood and Building Services"
"Business To Business Facility/","Industrial Supplies - Def","Www.Arco.Co.Uk","Supplies and Services related expenditure","07/07/2020","35.22","Director of Housing, Neighbourhood and Building Services"
"Business To Business Facility/","Industrial Supplies - Def","Www.Arco.Co.Uk","Supplies and Services related expenditure","07/12/2020","14.32","Director of Housing, Neighbourhood and Building Services"
"Business To Business Facility/","Industrial Supplies - Def","Www.Arco.Co.Uk","Supplies and Services related expenditure","07/12/2020","14.32","Director of Housing, Neighbourhood and Building Services"
"Business To Business Facility/","Industrial Supplies - Def","Www.Arco.Co.Uk","Supplies and Services related expenditure","","61.70","Director of Housing, Neighbourhood and Building Services"
"Business To Business Facility/","Industrial Supplies - Def","Www.Arco.Co.Uk","Supplies and Services related expenditure","","114.65","Director of Housing, Neighbourhood and Building Services"
"Business To Business Facility/","Industrial Supplies - Def","Www.Arco.Co.Uk","Supplies and Services related expenditure","","24.16","Director of Portsmouth International Port"
"Freight/Courier/Warehouse Svcs","Public Warehousing","Big Yellow S S Portsmout","Premises related expenditure","","22.00","Director of Housing, Neighbourhood and Building Services"
"Freight/Courier/Warehouse Svcs","Public Warehousing","Big Yellow S S Portsmout","Premises related expenditure","","217.60","Director of Housing, Neighbourhood and Building Services"
"Business To Business Facility/","Industrial Supplies - Def","Www.Arco.Co.Uk","Supplies and Services related expenditure","","11.54","Director of Housing, Neighbourhood and Building Services"
"Medical","Lab/Med/Hospital Equipment","Wightman & Parrish Ltd","Premises related expenditure","","17.52","Director of Housing, Neighbourhood and Building Services"
"Medical","Lab/Med/Hospital Equipment","Wightman & Parrish Ltd","Premises related expenditure","","167.99","Director of Housing, Neighbourhood and Building Services"
"Business To Business Eqpt/Furn","Stationery/Office Supplies","Www.Banneruk.Com","Supplies and Services related expenditure","","10.15","Director of Finance & Resources"
"Miscellaneous","Continuity/Subscription Mercht","Zoom.Gbp","Supplies and Services related expenditure","","14.39","Director of Portsmouth International Port"
"Auto/Vehicle Expenses","Automated Fuel Dispensers","Tesco Pay At Pump 4274","Transport related expenditure","","45.16","Director of Regeneration"
"Auto/Vehicle Expenses","Automated Fuel Dispensers","Tesco Pay At Pump 4274","Transport related expenditure","","65.94","Director of Regeneration"
"Facilities/Repair Supplies","Automotive Parts Stores","Euro Car Parts P","Supplies and Services related expenditure","","73.27","Director of Housing, Neighbourhood and Building Services"
"Type of Retail Store","Grocery Stores/Supermarkets","Lidl Gb Portsmouth","Supplies and Services related expenditure","","7.26","Director of Children's Services and Education"
"Type of Retail Store","Grocery Stores/Supermarkets","Lidl Gb Portsmouth","Supplies and Services related expenditure","","1.66","Director of Children's Services and Education"
"Facilities/Repair Supplies","Lawn/Garden Supply/Nursery","Wwwtudorenvironmentalcou","Supplies and Services related expenditure","","54.46","Director of Culture, Leisure & Regulatory Services"
"Auto/Vehicle Expenses","Automotive Tire Stores","Hordean Tyres","Transport related expenditure","","82.50","Director of Culture, Leisure & Regulatory Services"
"Business To Business Facility/","Industrial Supplies - Def","Www.Arco.Co.Uk","Supplies and Services related expenditure","","420.34","Director of Culture, Leisure & Regulatory Services"
"Facilities/Repair Supplies","Home Supply Warehouse Stores","Screwfix Direct","Supplies and Services related expenditure","","74.98","Director of Housing, Neighbourhood and Building Services"
"Other Supplies","Department Stores","Southern Co-Op 0008","Supplies and Services related expenditure","","4.90","Director of Children's Services and Education"
"Business To Business Eqpt/Furn","Book Stores","The Hayling Island Bkshp","Supplies and Services related expenditure","","61.33","Director of Culture, Leisure & Regulatory Services"
"Facilities/Repair Supplies","Hardware Stores","Www.Toolstation.Com","Supplies and Services related expenditure","","1.68","Director of Children's Services and Education"
"Other Supplies","Misc Speciality Retail","Amazon.Co.Uk","Supplies and Services related expenditure","","26.24","Director of Children's Services and Education"
"Business To Business Facility/","Industrial Supplies - Def","Www.Theshopfittingshop","Premises related expenditure","","200.04","Director of Children's Services and Education"
"Government Service","Govt Serv - Default","Portsmouth City Co","Transport related expenditure","","63.33","Director of Adult Services"
"Type of Retail Store","Pet Stores/Food & Supply","Jollyes The Pet Supers","Supplies and Services related expenditure","","48.19","Director of Children's Services and Education"
"Business To Business Facility/","Industrial Supplies - Def","Arco Ltd","Supplies and Services related expenditure","","217.02","Director of Regeneration"
"Business To Business Facility/","Industrial Supplies - Def","Arco Ltd","Supplies and Services related expenditure","","217.02","Director of Regeneration"
"Type of Retail Store","Electronics Sales","Currys Online","Supplies and Services related expenditure","","166.66","Director of Culture, Leisure & Regulatory Services"
"Transportation Conveyor","Bus Lines/Charter/Tour","Nx Website","Transport related expenditure","","45.80","Director of Children's Services and Education"
"Business To Business Eqpt/Furn","Stationery/Office Supplies","Www.Banneruk.Com","Supplies and Services related expenditure","","16.50","Director of Housing, Neighbourhood and Building Services"
"Government Service","Govt Serv - Default","Pcc Internet Payment","Supplies and Services related expenditure","","44.00","Director of Children's Services and Education"
"Other Supplies","Discount Stores","Argos Ltd","Supplies and Services related expenditure","","83.33","Director of Children's Services and Education"
"Business Expenses/Services","Postage Stamps","The Post Office","Supplies and Services related expenditure","","35.36","Director of Children's Services and Education"
"Other Supplies","Misc Speciality Retail","Amznmktplace","Supplies and Services related expenditure","","30.83","Director of Children's Services and Education"
"Equipment And Furniture","Furniture/Equip Stores","Peters Ltd","Supplies and Services related expenditure","","340.00","Director of Children's Services and Education"
"Utility","Utilities/Elec/Gas/H2O/Sani","British Gas Online","Supplies and Services related expenditure","","10.00","Director of Children's Services and Education"
"Clothing Services","Mens/Womens Clothing Stores","Redbubble.Com","Supplies and Services related expenditure","","13.79","Director of Children's Services and Education"
"Personal Service Provider","Computer Program/Sys Design","Connick Hearts & Words","Agency and Third Party Payments related expenditure","","34.85","Director of Children's Services and Education"
"Business Expenses/Services","Books/Periodicals/Newspapers","Www.Wheelersbooks.Co.N","Supplies and Services related expenditure","","9.00","Director of Culture, Leisure & Regulatory Services"
"Type of Retail Store","Grocery Stores/Supermarkets","Sainsburys S/mkts","Supplies and Services related expenditure","","7.00","Director of Culture, Leisure & Regulatory Services"
"Type of Retail Store","Electronics Sales","Currys T/sales","Supplies and Services related expenditure","","154.00","Director of Adult Services"
"Government Service","Schools - Default","Paypal","Supplies and Services related expenditure","","160.00","Director of Public Health"
"Facilities/Repair Supplies","Lawn/Garden Supply/Nursery","Carters Of Swanwic","Supplies and Services related expenditure","","1,389.44","Director of Housing, Neighbourhood and Building Services"
"Facilities/Repair Supplies","Lawn/Garden Supply/Nursery","Carters Of Swanwic","Supplies and Services related expenditure","","1,388.61","Director of Housing, Neighbourhood and Building Services"
"Facilities/Repair Supplies","Lawn/Garden Supply/Nursery","Carters Of Swanwic","Supplies and Services related expenditure","","1,388.61","Director of Housing, Neighbourhood and Building Services"
"Type of Retail Store","Cigar Stores/Stands","Totally Wicked","Supplies and Services related expenditure","","733.33","Director of Public Health"
"Facilities/Repair Supplies","Hardware Stores","Home Bargains","Supplies and Services related expenditure","","5.58","Director of Children's Services and Education"
"Facilities/Repair Supplies","Hardware Stores","Home Bargains","Premises related expenditure","","1.65","Director of Children's Services and Education"
"Facilities/Repair Supplies","Hardware Stores","Home Bargains","Supplies and Services related expenditure","","34.25","Director of Children's Services and Education"
"Type of Retail Store","Grocery Stores/Supermarkets","Aldi Stores Ltd","Supplies and Services related expenditure","","6.30","Director of Children's Services and Education"
"Type of Retail Store","Grocery Stores/Supermarkets","Aldi Stores Ltd","Supplies and Services related expenditure","","13.37","Director of Children's Services and Education"
"Type of Retail Store","Grocery Stores/Supermarkets","Aldi Stores Ltd","Supplies and Services related expenditure","","70.63","Director of Children's Services and Education"
"Business Expenses/Services","News Dealers/Newsstands","Wh Smith","Supplies and Services related expenditure","","39.97","Director of Children's Services and Education"
"Medical","Lab/Med/Hospital Equipment","Wightman & Parrish","Premises related expenditure","","45.34","Director of Housing, Neighbourhood and Building Services"
"Other Supplies","Misc Speciality Retail","Amznmktplace Amazon.Co.Uk","Supplies and Services related expenditure","","11.65","Director of Children's Services and Education"
"Business Expenses/Services","Postage Stamps","Post Office Counter","Supplies and Services related expenditure","","2.06","Director of Children's Services and Education"
"Business Expenses/Services","Postage Stamps","Post Office Counter","Supplies and Services related expenditure","","2.06","Director of Children's Services and Education"
"Business Expenses/Services","Postage Stamps","Post Office Counter","Supplies and Services related expenditure","","2.06","Director of Children's Services and Education"
"Other Supplies","Misc Speciality Retail","Amazon.Co.Uk","Premises related expenditure","","36.32","Director of Housing, Neighbourhood and Building Services"
"Government Service","Govt Serv - Default","Companies House","Supplies and Services related expenditure","","13.00","Director of Culture, Leisure & Regulatory Services"
"Miscellaneous","Other Direct Marketers","Amazon.Co.Uk","Supplies and Services related expenditure","","9.00","Director of Children's Services and Education"
"Business Expenses/Services","Stationery Stores","Www.Tts-Groups.Co.Uk","Supplies and Services related expenditure","","55.93","Director of Children's Services and Education"
"Other Supplies","Misc Speciality Retail","Amazon.Co.Uk","Supplies and Services related expenditure","","1.25","Director of Children's Services and Education"
"Miscellaneous","Other Direct Marketers","Amazon.Co.Uk","Supplies and Services related expenditure","","9.95","Director of Children's Services and Education"
"Other Supplies","Misc Speciality Retail","Amazon.Co.Uk","Supplies and Services related expenditure","","9.98","Director of Children's Services and Education"
"Miscellaneous","Other Direct Marketers","Amazon.Co.Uk","Supplies and Services related expenditure","","15.39","Director of Children's Services and Education"
"Business Expenses/Services","Postage Stamps","The Post Office","Supplies and Services related expenditure","","23.40","Director of Children's Services and Education"
"Type of Retail Store","Pet Stores/Food & Supply","Www.Petsathome.Com","Supplies and Services related expenditure","","24.71","Director of Children's Services and Education"
"Other Supplies","Misc Speciality Retail","Amznmktplace","Supplies and Services related expenditure","","80.83","Director of Children's Services and Education"
"Type of Retail Store","Grocery Stores/Supermarkets","Lidl Gb","Supplies and Services related expenditure","","3.32","Director of Housing, Neighbourhood and Building Services"
"Type of Retail Store","Drug Stores & Pharmacies","Superdrug Stores Plc","Supplies and Services related expenditure","","9.97","Director of Children's Services and Education"
"Medical","Lab/Med/Hospital Equipment","Wightman & Parrish","Premises related expenditure","","141.59","Director of Housing, Neighbourhood and Building Services"
"Business To Business Eqpt/Furn","Stationery/Office Supplies","Www.Banneruk.Com","Supplies and Services related expenditure","","18.67","Director of Corporate Services"
"Business To Business Eqpt/Furn","Stationery/Office Supplies","Www.Banneruk.Com","Supplies and Services related expenditure","","28.10","Director of Corporate Services"
"Utility","Phone Serv/Equip Utility","Vodafone Ltd","Supplies and Services related expenditure","","132.26","Director of Children's Services and Education"
"Automobile Services & Supplies","Service Stations","Shell Victory","Transport related expenditure","","57.79","Director of Regeneration"
"Auto/Vehicle Expenses","Auto Service Shops/Non Dealer","Boarhunt Group-Vt","Supplies and Services related expenditure","","554.83","Director of Children's Services and Education"
"Miscellaneous","Continuity/Subscription Mercht","Zoom.Gbp","Supplies and Services related expenditure","","11.99","Director of Public Health"
"Type of Retail Store","Grocery Stores/Supermarkets","Wm Morrisons Store","Supplies and Services related expenditure","","81.48","Director of Children's Services and Education"
"Facilities/Repair Supplies","Hardware Stores","Www.Toolstation.Com","Premises related expenditure","","54.38","Director of Children's Services and Education"
"Other Supplies","Misc Speciality Retail","Amznmktplace","Supplies and Services related expenditure","","19.97","Director of Adult Services"
"Other Supplies","Misc Speciality Retail","Amznmktplace","Supplies and Services related expenditure","","17.97","Director of Adult Services"
"Facilities/Repair Services","Spec Contractors - Default","Christie Intruder Alar","Supplies and Services related expenditure","","13.32","Director of Housing, Neighbourhood and Building Services"
"Facilities/Repair Supplies","Home Supply Warehouse Stores","Screwfix Direct","Supplies and Services related expenditure","","14.16","Director of Housing, Neighbourhood and Building Services"
"Business To Business Services","Information Retrieval Services","Www.Restore.Co.Uk","Supplies and Services related expenditure","","8.97","Solent LEP"
"Type of Retail Store","Grocery Stores/Supermarkets","Thai Asian Food Mart","Supplies and Services related expenditure","","6.32","Director of Children's Services and Education"
"Type of Retail Store","Grocery Stores/Supermarkets","Tesco Stores 4579","Supplies and Services related expenditure","","2.48","Director of Children's Services and Education"
"Type of Retail Store","Grocery Stores/Supermarkets","Tesco Stores 4579","Supplies and Services related expenditure","","72.73","Director of Children's Services and Education"
"Type of Retail Store","Grocery Stores/Supermarkets","Tesco Stores 4579","Supplies and Services related expenditure","","3.17","Director of Children's Services and Education"
"Type of Retail Store","Grocery Stores/Supermarkets","Tesco Stores 4579","Supplies and Services related expenditure","","5.00","Director of Children's Services and Education"
"Type of Retail Store","Grocery Stores/Supermarkets","Tesco Stores 4579","Supplies and Services related expenditure","","8.33","Director of Children's Services and Education"
"Business Expenses/Services","Stationery Stores","Www.Primaryteaching.Co","Supplies and Services related expenditure","","11.01","Director of Children's Services and Education"
"Other Supplies","Department Stores","The Range","Premises related expenditure","","16.58","Director of Adult Services"
"Business To Business Facility/","Hardware Equipment/Supplies","Croma Locksmiths & Sec","Premises related expenditure","","17.86","Director of Adult Services"
"Facilities/Repair Supplies","Home Supply Warehouse Stores","B & Q 1260","Premises related expenditure","","30.46","Director of Adult Services"
"Government Service","Tax Payments","Dvla Vehicle Tax","Transport related expenditure","","222.92","Director of Housing, Neighbourhood and Building Services"
"Business To Business Eqpt/Furn","Stationery/Office Supplies","Hbs Group","Premises related expenditure","","59.97","Director of Children's Services and Education"
"Miscellaneous","Charitable/Soc Service Orgs","British Red Cross","Employees related expenditure","","-199.00","Director of Children's Services and Education"
"Business To Business Eqpt/Furn","Stationery/Office Supplies","Www.Banneruk.Com","Supplies and Services related expenditure","","85.54","Director of Adult Services"
"Business To Business Facility/","Hardware Equipment/Supplies","Croma Locksmiths & Sec","Supplies and Services related expenditure","","6.90","Director of Housing, Neighbourhood and Building Services"
"Other Supplies","Misc Speciality Retail","Amznmktplace","Supplies and Services related expenditure","","2.71","Director of Culture, Leisure & Regulatory Services"
"Medical","Lab/Med/Hospital Equipment","Wightman & Parrish Ltd","Premises related expenditure","","183.39","Director of Housing, Neighbourhood and Building Services"
"Medical","Lab/Med/Hospital Equipment","Wightman & Parrish Ltd","Premises related expenditure","","337.64","Director of Housing, Neighbourhood and Building Services"
"Medical","Lab/Med/Hospital Equipment","Wightman & Parrish Ltd","Premises related expenditure","","465.83","Director of Housing, Neighbourhood and Building Services"
"Personal Service Provider","Computer Program/Sys Design","Custom Cards Emos","Supplies and Services related expenditure","","26.00","Director of Corporate Services"
"Type of Retail Store","Misc Food Stores - Default","Bransbury Park Butchers","Supplies and Services related expenditure","","58.40","Director of Adult Services"
"Type of Retail Store","Freezer/Meat Lockers","Dennis Edwards Food Serv","Supplies and Services related expenditure","","158.94","Director of Adult Services"
"Business To Business Facility/","Industrial Supplies - Def","Www.Arco.Co.Uk","Supplies and Services related expenditure","07/10/2020","14.32","Director of Portsmouth International Port"
"Business To Business Facility/","Industrial Supplies - Def","Www.Arco.Co.Uk","Supplies and Services related expenditure","07/10/2020","8.12","Director of Housing, Neighbourhood and Building Services"
"Business To Business Facility/","Industrial Supplies - Def","Www.Arco.Co.Uk","Supplies and Services related expenditure","","6.71","Director of Housing, Neighbourhood and Building Services"
"Other Supplies","Misc Speciality Retail","Amazon.Co.Uk","Supplies and Services related expenditure","","12.07","Director of Portsmouth International Port"
"Business To Business Facility/","Electrical Parts/Equipment","Premier Farnell","Supplies and Services related expenditure","","105.12","Director of Housing, Neighbourhood and Building Services"
"Business To Business Facility/","Electrical Parts/Equipment","Premier Farnell","Supplies and Services related expenditure","","133.74","Director of Housing, Neighbourhood and Building Services"
"Business To Business Facility/","Electrical Parts/Equipment","Premier Farnell","Supplies and Services related expenditure","","150.29","Director of Housing, Neighbourhood and Building Services"
"Utility","Cable/Pay Tv Services","Sky Subscription","Supplies and Services related expenditure","","74.00","Director of Children's Services and Education"
"Business To Business Facility/","Industrial Supplies - Def","Www.Arco.Co.Uk","Supplies and Services related expenditure","","56.69","Director of Housing, Neighbourhood and Building Services"
